Workbook

Sheet Information
A1: About 1841 England, Wales & Scotland Census
A3: The amount of information listed varies, but the 1841 Census records usually include the following information:
A5: First name
A6: Middle name
A7: Last name
A8: Sex
A9: Birth place
A10: Age
A11: Place of residence
A12: County
A14: You can also search the 1841 census by address, which is ideal for tracing the history of your house or exploring the local history of an area.
A16: By noting how many households there were in a building and whether the household included servants or boarders or visitors, you can gain insight into the social circumstances of the family.
A18: As well as the above details, census returns may also include information that not only helps us to determine who our ancestors were, but that also tell us:
A20: Where your ancestors were living
A21: Who they were living with
A22: What their occupations were
A23: If they had any servants
A24: Who their neighbours were
A25: If they had any brothers and sisters
A26: What their ages were at the time of the census
A28: Discover more about the 1841 census
A30: The 1841 census was the first modern census, when the first Registrar General of England and Wales was made responsible for organising the count.
A32: The census was taken on the night of 6 June 1841 and gave the total population as 18,553,124.
A34: The task of counting was passed to local officers of the newly created registration service. This is the earliest census that has survived in its entirety: few of the 1801, 1811, 1821 and 1831 censuses have survived the ravages of time.
A36: 1841 was the first time that the head of each household was given a form to fill in on behalf of everyone in the dwelling on a set day. This system still forms the basis of the method used today.
A38: Of course, illiteracy was high in 1841, and anyone unable to read or write would have made use of an enumerator - a literate person who would be collecting the census forms - to help fill in the details. Because of this, however, you may note mistakes that were made, such as name spellings. It should also be noted that many people were often economical with the truth when it came to their ages.
A40: Note: In the 1841 Census there was also a policy of rounding down ages was in place. As such, people aged:
A42: 15-19 were recorded as 15
A43: 20-24 were recorded as 20
A44: 25-29 were recorded as 25
A45: 30-34 were recorded as 30
A46: 35-39 were recorded as 35...and so on
A48: As well as giving us the above information, the fact that census returns are taken every ten years also allows us to track the movements of our ancestors through time as they perhaps move house, get married, have children or even change occupations.

Sheet People of Muirhead Street 1841
A1: My Index | B1: Schedule | C1: First name(s) | D1: Last name | E1: Sex | F1: Age | G1: Birth year | H1: Birth place
A2: 1 | B2: 59 | C2: John | D2: Hamilton | E2: Male | F2: 45 | G2: 1796 | H2: Scotland | K2: =COUNTIF(H2:H604,"*Scotland*") -> 374 | L2: =COUNTIF(H2:H604,"*Ireland*") -> 115
A3: 2 | B3: 59 | C3: George | D3: Knox | E3: Male | F3: 30 | G3: 1811 | H3: Lanarkshire, Scotland
A4: 3 | B4: 59 | C4: William | D4: Ingles | E4: Male | F4: 35 | G4: 1806 | H4: Lanarkshire, Scotland
A5: 4 | B5: 59 | C5: Alexander | D5: Grieve | E5: Male | F5: 40 | G5: 1801 | H5: Scotland
A6: 5 | B6: 59 | C6: James | D6: Buchanan | E6: Male | F6: 35 | G6: 1806 | H6: Lanarkshire, Scotland
A7: 6 | B7: 59 | C7: James | D7: Davie | E7: Male | F7: 35 | G7: 1806 | H7: Scotland
A8: 7 | C8: First name(s) | D8: Last name | E8: Sex | F8: Age | G8: Birth year | H8: Birth place
A9: 8 | B9: 60 | C9: Margaret | D9: Leatch | E9: Female | F9: 70 | G9: 1771 | H9: Lanarkshire, Scotland
A10: 9 | B10: 60 | C10: Ann | D10: Leatch | E10: Female | F10: 25 | G10: 1816 | H10: Lanarkshire, Scotland
A11: 10 | B11: 60 | C11: John | D11: Leatch | E11: Male | F11: 25 | G11: 1816 | H11: Lanarkshire, Scotland
A12: 11 | B12: 60 | C12: John | D12: McGregor | E12: Male | F12: 3 | G12: 1838 | H12: Lanarkshire, Scotland
A13: 12 | C13: First name(s) | D13: Last name | E13: Sex | F13: Age | G13: Birth year | H13: Birth place
A14: 13 | B14: 61 | C14: William | D14: White | E14: Male | F14: 60 | G14: 1781 | H14: Lanarkshire, Scotland | I14: Night watch
A15: 14 | C15: First name(s) | D15: Last name | E15: Sex | F15: Age | G15: Birth year | H15: Birth place
A16: 15 | B16: 62 | C16: Margaret | D16: McLachlen | E16: Female | F16: 75 | G16: 1766 | H16: Scotland
A17: 16 | B17: 62 | C17: Jane | D17: McLaghlen | E17: Female | F17: 40 | G17: 1801 | H17: Scotland
A18: 17 | B18: 62 | C18: Catherine | D18: McLaghlen | E18: Female | F18: 25 | G18: 1816 | H18: Lanarkshire, Scotland
A19: 18 | C19: First name(s) | D19: Last name | E19: Sex | F19: Age | G19: Birth year | H19: Birth place
A20: 19 | B20: 63 | C20: James | D20: Spright | E20: Male | F20: 20 | G20: 1821 | H20: Lanarkshire, Scotland
A21: 20 | B21: 63 | C21: Colven | D21: Woods | E21: Male | F21: 30 | G21: 1811 | H21: Ireland
A22: 21 | C22: First name(s) | D22: Last name | E22: Sex | F22: Age | G22: Birth year | H22: Birth place
A23: 22 | B23: 64 | C23: First name(s) | D23: Last name | E23: Sex | F23: Age | G23: Birth year | H23: Birth place
A24: 23 | B24: 64 | C24: John | D24: Dalgliesh | E24: Male | F24: 25 | G24: 1816 | H24: Scotland
A25: 24 | B25: 64 | C25: Ellen | D25: Dalgliesh | E25: Female | F25: 25 | G25: 1816 | H25: Scotland
A26: 25 | B26: 64 | C26: Thomas | D26: Dalgliesh | E26: Male | F26: 0 | G26: 1841 | H26: Lanarkshire, Scotland
A27: 26 | B27: 64 | C27: Mary | D27: Allan | E27: Female | F27: 9 | G27: 1832 | H27: Scotland
A28: 27 | C28: First name(s) | D28: Last name | E28: Sex | F28: Age | G28: Birth year | H28: Birth place
A29: 28 | B29: 65 | C29: First name(s) | D29: Last name | E29: Sex | F29: Age | G29: Birth year | H29: Birth place
A30: 29 | B30: 65 | C30: Mary | D30: Marlay | E30: Female | F30: 40 | G30: 1801 | H30: Ireland
A31: 30 | B31: 65 | C31: Ann | D31: Marlay | E31: Female | F31: 14 | G31: 1827 | H31: Lanarkshire, Scotland
A32: 31 | B32: 65 | C32: Bridget | D32: Marlay | E32: Female | F32: 12 | G32: 1829 | H32: Lanarkshire, Scotland
A33: 32 | B33: 65 | C33: Mary | D33: Marlay | E33: Female | F33: 11 | G33: 1830 | H33: Lanarkshire, Scotland
A34: 33 | B34: 65 | C34: Terressy | D34: Marlay | E34: Female | F34: 8 | G34: 1833 | H34: Lanarkshire, Scotland
A35: 34 | B35: 65 | C35: Bridget | D35: McAvoy | E35: Female | F35: 28 | G35: 1813 | H35: Ireland
A36: 35 | B36: 65 | C36: Sarah | D36: McCallay | E36: Female | F36: 20 | G36: 1821 | H36: Lanarkshire, Scotland
A37: 36 | C37: First name(s) | D37: Last name | E37: Sex | F37: Age | G37: Birth year | H37: Birth place
A38: 37 | B38: 66 | C38: Michael | D38: Dollan | E38: Male | F38: 35 | G38: 1806 | H38: Ireland
A39: 38 | B39: 66 | C39: Sarah | D39: Dollan | E39: Female | F39: 35 | G39: 1806 | H39: Ireland
A40: 39 | B40: 66 | C40: Mary | D40: Dollan | E40: Female | F40: 5 | G40: 1836 | H40: Ireland
A41: 40 | B41: 66 | C41: Sarah | D41: Dollan | E41: Female | F41: 1 | G41: 1840 | H41: Lanarkshire, Scotland
A42: 41 | B42: 66 | C42: Henry | D42: Grieve | E42: Male | F42: 30 | G42: 1811 | H42: Lanarkshire, Scotland
A43: 42 | B43: 66 | C43: Isabella | D43: Grieve | E43: Female | F43: 20 | G43: 1821 | H43: Lanarkshire, Scotland
A44: 43 | B44: 66 | C44: Patrick | D44: McGowan | E44: Male | F44: 40 | G44: 1801 | H44: Ireland
A45: 44 | B45: 66 | C45: Mary | D45: McGowan | E45: Female | F45: 40 | G45: 1801 | H45: Ireland
A46: 45 | B46: 66 | C46: Patrick | D46: McGowan | E46: Male | F46: 15 | G46: 1826 | H46: Lanarkshire, Scotland
A47: 46 | B47: 66 | C47: Mary | D47: McGowan | E47: Female | F47: 5 | G47: 1836 | H47: Lanarkshire, Scotland
A48: 47 | B48: 66 | C48: Widow | D48: McDead | E48: Female | F48: 75 | G48: 1766 | H48: Ireland
A49: 48 | B49: 66 | C49: Mary | D49: Alexander | E49: Female | F49: 20 | G49: 1821 | H49: Lanarkshire, Scotland
A50: 49 | B50: 66 | C50: Catherine | D50: Dick | E50: Female | F50: 40 | G50: 1801 | H50: Lanarkshire, Scotland
A51: 50 | B51: 66 | C51: Jane | D51: Dick | E51: Female | F51: 5 | G51: 1836 | H51: Lanarkshire, Scotland
A52: 51 | B52: 66 | C52: Mary | D52: Dick | E52: Female | F52: 1 | G52: 1840 | H52: Lanarkshire, Scotland
A53: 52 | C53: First name(s) | D53: Last name | E53: Sex | F53: Age | G53: Birth year | H53: Birth place
A54: 53 | B54: 67 | C54: Patrick | D54: Hanna | E54: Male | F54: 45 | G54: 1796 | H54: Ireland
A55: 54 | B55: 67 | C55: - | D55: Hanna | E55: Female | F55: 45 | G55: 1796 | H55: Ireland
A56: 55 | B56: 67 | C56: Mary | D56: Hanna | E56: Female | F56: 10 | G56: 1831 | H56: Scotland
A57: 56 | B57: 67 | C57: Catherine | D57: Boyle | E57: Female | F57: 40 | G57: 1801 | H57: Lanarkshire, Scotland
A58: 57 | B58: 67 | C58: William | D58: Doherty | E58: Male | F58: 35 | G58: 1806 | H58: Ireland
A59: 58 | B59: 67 | C59: Thomas | D59: White | E59: Male | F59: 50 | G59: 1791 | H59: Scotland
A60: 59 | B60: 67 | C60: Archibald | D60: Thomson | E60: Male | F60: 35 | G60: 1806 | H60: Scotland
A61: 60 | B61: 67 | C61: Archibald | D61: Thomson | E61: Male | F61: 10 | G61: 1831 | H61: Scotland
A62: 61 | B62: 67 | C62: James | D62: Hilly | E62: Male | F62: 30 | G62: 1811 | H62: Scotland
A63: 62 | B63: 67 | C63: - | D63: Hilly | E63: Female | F63: 25 | G63: 1816 | H63: Ireland
A64: 63 | B64: 67 | C64: James | D64: Hilly | E64: Male | F64: 3 | G64: 1838 | H64: Scotland
A65: 64 | B65: 67 | C65: John | D65: Green | E65: Male | F65: 20 | G65: 1821 | H65: Ireland
A66: 65 | B66: 67 | C66: John | D66: Knox | E66: Male | F66: 15 | G66: 1826 | H66: Scotland
A67: 66 | C67: First name(s) | D67: Last name | E67: Sex | F67: Age | G67: Birth year | H67: Birth place
A68: 67 | B68: 68 | C68: Robert | D68: Gillies | E68: Male | F68: 45 | G68: 1796 | H68: Ireland
A69: 68 | B69: 68 | C69: Sarah | D69: Gillies | E69: Female | F69: 50 | G69: 1791 | H69: England
A70: 69 | B70: 68 | C70: Archibald | D70: Gillies | E70: Male | F70: 20 | G70: 1821 | H70: Lanarkshire, Scotland
A71: 70 | B71: 68 | C71: Margaret | D71: Gillies | E71: Female | F71: 15 | G71: 1826 | H71: Lanarkshire, Scotland
A72: 71 | B72: 68 | C72: Thomas | D72: Paterson | E72: Male | F72: 20 | G72: 1821 | H72: Lanarkshire, Scotland
A73: 72 | C73: First name(s) | D73: Last name | E73: Sex | F73: Age | G73: Birth year | H73: Birth place
A74: 73 | B74: 69 | C74: Emellea | D74: Dillan | E74: Female | F74: 55 | G74: 1786 | H74: Ireland
A75: 74 | B75: 69 | C75: James | D75: Dowie | E75: Male | F75: 40 | G75: 1801 | H75: Scotland
A76: 75 | B76: 69 | C76: Janet | D76: Dowie | E76: Female | F76: 45 | G76: 1796 | H76: Scotland
A77: 76 | B77: 69 | C77: Thomas | D77: Short | E77: Male | F77: 55 | G77: 1786 | H77: Ireland
A78: 77 | B78: 69 | C78: Elizabeth | D78: Short | E78: Female | F78: 50 | G78: 1791 | H78: Ireland
A79: 78 | B79: 69 | C79: James | D79: McGowan | E79: Male | F79: 25 | G79: 1816 | H79: Scotland
A80: 79 | B80: 69 | C80: Thomas | D80: McGowan | E80: Male | F80: 1 | G80: 1840 | H80: Lanarkshire, Scotland
A81: 80 | B81: 69 | C81: Elizabeth | D81: McGowan | E81: Female | F81: 20 | G81: 1821 | H81: Ireland
A82: 81 | B82: 69 | C82: William | D82: McKean | E82: Male | F82: 45 | G82: 1796 | H82: Ireland
A83: 82 | B83: 69 | C83: Janet | D83: Stewart | E83: Female | F83: 10 | G83: 1831 | H83: Scotland
A84: 83 | B84: 69 | C84: Hamilton | D84: Hay | E84: Male | F84: 10 | G84: 1831 | H84: Lanarkshire, Scotland
A85: 84 | B85: 69 | C85: Barbara | D85: Ross | E85: Female | F85: 20 | G85: 1821 | H85: Scotland
A86: 85 | B86: 69 | C86: Agnes | D86: McKean | E86: Female | F86: 10 | G86: 1831 | H86: Scotland
A87: 86 | C87: First name(s) | D87: Last name | E87: Sex | F87: Age | G87: Birth year | H87: Birth place
A88: 87 | B88: 70 | C88: Hugh | D88: Bagnell | E88: Male | F88: 25 | G88: 1816 | H88: Lanarkshire, Scotland
A89: 88 | B89: 70 | C89: Mary | D89: Bagnell | E89: Female | F89: 40 | G89: 1801 | H89: -
A90: 89 | B90: 70 | C90: George | D90: Bagnell | E90: Male | F90: 5 | G90: 1836 | H90: Lanarkshire, Scotland
A91: 90 | B91: 70 | C91: John | D91: O'Bryan | E91: Male | F91: 10 | G91: 1831 | H91: Lanarkshire, Scotland
A92: 91 | B92: 70 | C92: Philip | D92: O'Bryan | E92: Male | F92: 10 | G92: 1831 | H92: Ireland
A93: 92 | B93: 70 | C93: Penelopy | D93: O'Bryan | E93: Female | F93: 10 | G93: 1831 | H93: Lanarkshire, Scotland
A94: 93 | B94: 70 | C94: Mary | D94: O'Bryan | E94: Female | F94: 5 | G94: 1836 | H94: Lanarkshire, Scotland
A95: 94 | B95: 70 | C95: John | D95: Orr | E95: Male | F95: 25 | G95: 1816 | H95: Ireland
A96: 95 | B96: 70 | C96: Margaret | D96: Orr | E96: Female | F96: 25 | G96: 1816 | H96: Ireland
A97: 96 | B97: 70 | C97: James | D97: Orr | E97: Male | F97: 4 | G97: 1837 | H97: Ireland
A98: 97 | B98: 70 | C98: Rob | D98: Orr | E98: Male | F98: 2 | G98: 1839 | H98: Ireland
A99: 98 | B99: 70 | C99: Torrance | D99: Horn | E99: Male | F99: 60 | G99: 1781 | H99: Ireland
A100: 99 | B100: 70 | C100: Cathern | D100: Horn | E100: Female | F100: 50 | G100: 1791 | H100: Ireland
A101: 100 | C101: First name(s) | D101: Last name | E101: Sex | F101: Age | G101: Birth year | H101: Birth place
A102: 101 | B102: 71 | C102: John | D102: Dodds | E102: Male | F102: 40 | G102: 1801 | H102: Lanarkshire, Scotland
A103: 102 | B103: 71 | C103: Alexander | D103: Crooks | E103: Male | F103: 20 | G103: 1821 | H103: Scotland
A104: 103 | B104: 71 | C104: William | D104: Stewart | E104: Male | F104: 15 | G104: 1826 | H104: Scotland
A105: 104 | B105: 71 | C105: William | D105: Anderson | E105: Male | F105: 20 | G105: 1821 | H105: Scotland
A106: 105 | B106: 71 | C106: William | D106: Moffer | E106: Male | F106: 20 | G106: 1821 | H106: Lanarkshire, Scotland
A107: 106 | B107: 71 | C107: Alexander | D107: Fraser | E107: Male | F107: 15 | G107: 1826 | H107: Scotland
A108: 107 | B108: 71 | C108: Angus | D108: Fraser | E108: Male | F108: 15 | G108: 1826 | H108: Scotland
A109: 108 | B109: 71 | C109: John | D109: Oswald | E109: Male | F109: 20 | G109: 1821 | H109: Scotland
A110: 109 | B110: 71 | C110: Jane | D110: Murry | E110: Female | F110: 30 | G110: 1811 | H110: Scotland
A111: 110 | B111: 71 | C111: Agnes | D111: Dalglish | E111: Female | F111: 50 | G111: 1791 | H111: -
A112: 111 | C112: First name(s) | D112: Last name | E112: Sex | F112: Age | G112: Birth year | H112: Birth place
A113: 112 | B113: 72 | C113: Sarah | D113: Dalrumple | E113: Female | F113: 35 | G113: 1806 | H113: Ireland
A114: 113 | C114: First name(s) | D114: Last name | E114: Sex | F114: Age | G114: Birth year | H114: Birth place
A115: 114 | B115: 73 | C115: Hugh | D115: Paterson | E115: Male | F115: 35 | G115: 1806 | H115: Scotland
A116: 115 | B116: 73 | C116: Margaret | D116: Paterson | E116: Female | F116: 35 | G116: 1806 | H116: Scotland
A117: 116 | B117: 73 | C117: Jenat | D117: Paterson | E117: Female | F117: 10 | G117: 1831 | H117: Lanarkshire, Scotland
A118: 117 | B118: 73 | C118: Margaret | D118: Paterson | E118: Female | F118: 7 | G118: 1834 | H118: Lanarkshire, Scotland
A119: 118 | B119: 73 | C119: George | D119: Paterson | E119: Male | F119: 4 | G119: 1837 | H119: Lanarkshire, Scotland
A120: 119 | C120: First name(s) | D120: Last name | E120: Sex | F120: Age | G120: Birth year | H120: Birth place
A121: 120 | B121: 74 | C121: Thomas | D121: McHail | E121: Male | F121: 30 | G121: 1811 | H121: Ireland
A122: 121 | B122: 74 | C122: Margaret | D122: McGillion | E122: Female | F122: 25 | G122: 1816 | H122: Ireland
A123: 122 | B123: 74 | C123: Thomas | D123: McHail | E123: Male | F123: 0 | G123: 1841 | H123: Lanarkshire, Scotland
A124: 123 | C124: First name(s) | D124: Last name | E124: Sex | F124: Age | G124: Birth year | H124: Birth place
A125: 124 | B125: 75 | C125: David | D125: Anderson | E125: Male | F125: 25 | G125: 1816 | H125: Scotland
A126: 125 | B126: 75 | C126: Janet | D126: Anderson | E126: Female | F126: 20 | G126: 1821 | H126: Lanarkshire, Scotland
A127: 126 | B127: 75 | C127: Mary | D127: Anderson | E127: Female | F127: 1 | G127: 1840 | H127: Lanarkshire, Scotland
A128: 127 | B128: 75 | C128: John | D128: Henderson | E128: Male | F128: 18 | G128: 1823 | H128: Lanarkshire, Scotland
A129: 128 | C129: First name(s) | D129: Last name | E129: Sex | F129: Age | G129: Birth year | H129: Birth place
A130: 129 | B130: 76 | C130: Collin | D130: Campbell | E130: Male | F130: 30 | G130: 1811 | H130: Scotland
A131: 130 | B131: 76 | C131: Mary | D131: Campbell | E131: Female | F131: 20 | G131: 1821 | H131: Scotland
A132: 131 | B132: 76 | C132: John | D132: Walker | E132: Male | F132: 30 | G132: 1811 | H132: Scotland
A133: 132 | B133: 76 | C133: Margaret | D133: Wallace | E133: Female | F133: 25 | G133: 1816 | H133: Scotland
A134: 133 | B134: 76 | C134: Robert | D134: Wallace | E134: Male | F134: 6 | G134: 1835 | H134: Scotland
A135: 134 | B135: 76 | C135: Collin | D135: Wallace | E135: Male | F135: 0 | G135: 1841 | H135: Scotland
A136: 135 | B136: 76 | C136: Martha | D136: McNab | E136: Female | F136: 20 | G136: 1821 | H136: Scotland
A137: 136 | C137: First name(s) | D137: Last name | E137: Sex | F137: Age | G137: Birth year | H137: Birth place
A138: 137 | B138: 77 | C138: Patrick | D138: McCarn | E138: Male | F138: 30 | G138: 1811 | H138: Ireland
A139: 138 | B139: 77 | C139: Martha | D139: McCarn | E139: Female | F139: 30 | G139: 1811 | H139: Ireland
A140: 139 | B140: 77 | C140: Biddy | D140: McCarn | E140: Female | F140: 15 | G140: 1826 | H140: Ireland
A141: 140 | B141: 77 | C141: Margaret | D141: McCarn | E141: Female | F141: 10 | G141: 1831 | H141: Ireland
A142: 141 | B142: 77 | C142: Patrick | D142: McCarn | E142: Male | F142: 5 | G142: 1836 | H142: Lanarkshire, Scotland
A143: 142 | B143: 77 | C143: Catherine | D143: McCarn | E143: Female | F143: 5 | G143: 1836 | H143: Lanarkshire, Scotland
A144: 143 | B144: 77 | C144: John | D144: McCarn | E144: Male | F144: 2 | G144: 1839 | H144: Lanarkshire, Scotland
A145: 144 | C145: First name(s) | D145: Last name | E145: Sex | F145: Age | G145: Birth year | H145: Birth place
A146: 145 | B146: 78 | C146: Peter | D146: Docherty | E146: Male | F146: 20 | G146: 1821 | H146: Ireland
A147: 146 | B147: 78 | C147: Daniel | D147: Sherkey | E147: Male | F147: 45 | G147: 1796 | H147: Ireland
A148: 147 | B148: 78 | C148: Elizabeth | D148: Sherkey | E148: Female | F148: 40 | G148: 1801 | H148: Ireland
A149: 148 | B149: 78 | C149: Mary | D149: Sherkey | E149: Female | F149: 20 | G149: 1821 | H149: Ireland
A150: 149 | B150: 78 | C150: Catherine | D150: Sherkey | E150: Female | F150: 13 | G150: 1828 | H150: Ireland
A151: 150 | B151: 78 | C151: James | D151: Sherkey | E151: Male | F151: 15 | G151: 1826 | H151: Ireland
A152: 151 | B152: 78 | C152: Hugh | D152: Sherkey | E152: Male | F152: 11 | G152: 1830 | H152: Ireland
A153: 152 | B153: 78 | C153: Lowise | D153: Sherkey | E153: Female | F153: 9 | G153: 1832 | H153: Ireland
A154: 153 | B154: 78 | C154: Michael | D154: Sherkey | E154: Female | F154: 6 | G154: 1835 | H154: Ireland
A155: 154 | B155: 78 | C155: Rebecca | D155: Maden | E155: Female | F155: 55 | G155: 1786 | H155: Ireland
A156: 155 | B156: 78 | C156: Rebecca | D156: Maden | E156: Female | F156: 15 | G156: 1826 | H156: Ireland
A157: 156 | B157: 78 | C157: Patrick | D157: Maden | E157: Male | F157: 14 | G157: 1827 | H157: Ireland
A158: 157 | B158: 78 | C158: Ellen | D158: Hanna | E158: Female | F158: 30 | G158: 1811 | H158: Ireland
A159: 158 | B159: 78 | C159: Catherine | D159: Kelly | E159: Female | F159: 40 | G159: 1801 | H159: Ireland
A160: 159 | B160: 78 | C160: John | D160: Cunningham | E160: Male | F160: 20 | G160: 1821 | H160: Ireland
A161: 160 | B161: 78 | C161: Samuel | D161: Cunningham | E161: Male | F161: 15 | G161: 1826 | H161: Ireland
A162: 161 | B162: 78 | C162: Mary | D162: Frirsen | E162: Female | F162: 20 | G162: 1821 | H162: Ireland
A163: 162 | B163: 78 | C163: Thomas | D163: Cunningham | E163: Male | F163: 1 | G163: 1840 | H163: Lanarkshire, Scotland
A164: 163 | C164: First name(s) | D164: Last name | E164: Sex | F164: Age | G164: Birth year | H164: Birth place
A165: 164 | B165: 79 | C165: Alexander | D165: Dobbie | E165: Male | F165: 35 | G165: 1806 | H165: Scotland
A166: 165 | B166: 79 | C166: Agnes | D166: Dobbie | E166: Female | F166: 45 | G166: 1796 | H166: Scotland
A167: 166 | B167: 79 | C167: William | D167: Dobbie | E167: Male | F167: 15 | G167: 1826 | H167: Lanarkshire, Scotland
A168: 167 | B168: 79 | C168: David | D168: Dobbie | E168: Male | F168: 13 | G168: 1828 | H168: Lanarkshire, Scotland
A169: 168 | B169: 79 | C169: Alexander | D169: Dobbie | E169: Male | F169: 11 | G169: 1830 | H169: Lanarkshire, Scotland
A170: 169 | B170: 79 | C170: James | D170: Dobbie | E170: Male | F170: 9 | G170: 1832 | H170: Lanarkshire, Scotland
A171: 170 | B171: 79 | C171: Andrew | D171: Dobbie | E171: Male | F171: 7 | G171: 1834 | H171: Lanarkshire, Scotland
A172: 171 | B172: 79 | C172: John | D172: Algie | E172: Male | F172: 20 | G172: 1821 | H172: Scotland
A173: 172 | C173: First name(s) | D173: Last name | E173: Sex | F173: Age | G173: Birth year | H173: Birth place
A174: 173 | B174: 80 | C174: John | D174: McFarlane | E174: Male | F174: 25 | G174: 1816 | H174: Scotland
A175: 174 | B175: 80 | C175: Catherine | D175: McFarlane | E175: Female | F175: 30 | G175: 1811 | H175: Scotland
A176: 175 | B176: 80 | C176: Catherine | D176: McFarlane | E176: Female | F176: 1 | G176: 1840 | H176: Lanarkshire, Scotland
A177: 176 | C177: First name(s) | D177: Last name | E177: Sex | F177: Age | G177: Birth year | H177: Birth place
A178: 177 | B178: 81 | C178: Jane | D178: McGill | E178: Female | F178: 40 | G178: 1801 | H178: Lanarkshire, Scotland
A179: 178 | B179: 81 | C179: Jane | D179: McGill | E179: Female | F179: 15 | G179: 1826 | H179: Lanarkshire, Scotland
A180: 179 | B180: 81 | C180: James | D180: McGill | E180: Male | F180: 15 | G180: 1826 | H180: Lanarkshire, Scotland
A181: 180 | B181: 81 | C181: Hugh | D181: McGill | E181: Male | F181: 13 | G181: 1828 | H181: Lanarkshire, Scotland
A182: 181 | B182: 81 | C182: William | D182: McGill | E182: Male | F182: 10 | G182: 1831 | H182: Lanarkshire, Scotland
A183: 182 | B183: 81 | C183: George | D183: McGill | E183: Male | F183: 7 | G183: 1834 | H183: Lanarkshire, Scotland
A184: 183 | C184: First name(s) | D184: Last name | E184: Sex | F184: Age | G184: Birth year | H184: Birth place
A185: 184 | B185: 82 | C185: Alexander | D185: Martain | E185: Male | F185: 35 | G185: 1806 | H185: Scotland
A186: 185 | B186: 82 | C186: Farquhar | D186: Martain | E186: Male | F186: 20 | G186: 1821 | H186: Scotland
A187: 186 | B187: 82 | C187: Donald | D187: Martain | E187: Male | F187: 4 | G187: 1837 | H187: Scotland
A188: 187 | B188: 82 | C188: Christian | D188: Martain | E188: Female | F188: 31 | G188: 1810 | H188: Scotland
A189: 188 | B189: 82 | C189: Jessie | D189: Morter | E189: Female | F189: 1 | G189: 1840 | H189: Scotland
A190: 189 | B190: 82 | C190: Margaret | D190: Macinnis | E190: Female | F190: 1 | G190: 1840 | H190: Scotland
A191: 190 | C191: First name(s) | D191: Last name | E191: Sex | F191: Age | G191: Birth year | H191: Birth place
A192: 191 | B192: 83 | C192: Crawford | D192: Chalmers | E192: Male | F192: 40 | G192: 1801 | H192: Scotland
A193: 192 | B193: 83 | C193: Martha | D193: Chalmers | E193: Female | F193: 35 | G193: 1806 | H193: Scotland
A194: 193 | B194: 83 | C194: David | D194: Chalmers | E194: Male | F194: 10 | G194: 1831 | H194: Lanarkshire, Scotland
A195: 194 | B195: 83 | C195: Ann | D195: Chalmers | E195: Female | F195: 5 | G195: 1836 | H195: Lanarkshire, Scotland
A196: 195 | C196: First name(s) | D196: Last name | E196: Sex | F196: Age | G196: Birth year | H196: Birth place
A197: 196 | B197: 84 | C197: Peter | D197: Shordan | E197: Male | F197: 40 | G197: 1801 | H197: Ireland
A198: 197 | B198: 84 | C198: Jane | D198: Shordan | E198: Female | F198: 20 | G198: 1821 | H198: Ireland
A199: 198 | B199: 84 | C199: James | D199: Murry | E199: Male | F199: 30 | G199: 1811 | H199: Ireland
A200: 199 | B200: 84 | C200: Barbara | D200: Murry | E200: Female | F200: 30 | G200: 1811 | H200: Ireland
... 404 more rows

Sheet sort by country of birth
A1: My Index | B1: Schedule | C1: First name(s) | D1: Last name | E1: Sex | F1: Age | G1: Birth year | H1: Birth place | J1: Scotland | K1: Ireland | L1: England | Q1: Lanarkshire | R1: No Place Given
A2: 596 | B2: 25 | C2: John | D2: Buchanan | E2: Male | F2: 35 | G2: 1806 | H2: Lanarkshire, Scotland | J2: =COUNTIF(H2:H509,"*Scotland*") -> 374 | K2: =COUNTIF(H2:H509,"*Ireland*") -> 115 | L2: =COUNTIF(H2:H509,"*England*") -> 11 | O2: =SUM(J2:N2) -> 500 | Q2: =COUNTIF(H2:H509,"*Lanarkshire*") -> 245 | R2: 8
A3: 597 | B3: 25 | C3: Margaret | D3: Buchanan | E3: Female | F3: 25 | G3: 1816 | H3: Lanarkshire, Scotland
A4: 598 | B4: 25 | C4: David | D4: Buchanan | E4: Male | F4: 10 | G4: 1831 | H4: Lanarkshire, Scotland | J4: 508
A5: 599 | B5: 25 | C5: John | D5: Buchanan | E5: Male | F5: 8 | G5: 1833 | H5: Lanarkshire, Scotland
A6: 600 | B6: 25 | C6: Jean | D6: Buchanan | E6: Female | F6: 6 | G6: 1835 | H6: Lanarkshire, Scotland | Q6: =Q2/J4 -> 48.23% | R6: percentage born in Lanarkshire
A7: 601 | B7: 25 | C7: Lawrence | D7: Buchanan | E7: Male | F7: 4 | G7: 1837 | H7: Lanarkshire, Scotland
A8: 602 | B8: 25 | C8: William | D8: Buchanan | E8: Male | F8: 2 | G8: 1839 | H8: Lanarkshire, Scotland
A9: 603 | B9: 25 | C9: George | D9: Buchanan | E9: Male | F9: 0 | G9: 1841 | H9: Lanarkshire, Scotland
A10: 509 | B10: 26 | C10: Charles | D10: Kerr | E10: Male | F10: 25 | G10: 1816 | H10: Ireland
A11: 510 | B11: 26 | C11: Sally | D11: Kerr | E11: Female | F11: 25 | G11: 1816 | H11: Ireland
A12: 511 | B12: 26 | C12: Mary | D12: Kerr | E12: Female | F12: 7 | G12: 1834 | H12: Lanarkshire, Scotland | M12: Scotland | N12: Ireland | O12: England | P12: Other
A13: 512 | B13: 26 | C13: Charles | D13: Kerr | E13: Male | F13: 2 | G13: 1839 | H13: Lanarkshire, Scotland | M13: 374 | N13: 115 | O13: 11 | P13: 8
A14: 513 | B14: 26 | C14: Agness | D14: Mardy | E14: Female | F14: 30 | G14: 1811 | H14: Lanarkshire, Scotland | M14: =M13/500 -> 74.80% | N14: =N13/500 -> 23.00% | O14: =O13/500 -> 2.20% | P14: =P13/500 -> 1.60%
A15: 514 | B15: 26 | C15: Jennet | D15: Adams | E15: Female | F15: 50 | G15: 1791 | H15: Ireland
A16: 516 | B16: 27 | C16: John | D16: Carmicheal | E16: Male | F16: 40 | G16: 1801 | H16: Lanarkshire, Scotland
A17: 517 | B17: 27 | C17: Helen | D17: Carmicheal | E17: Female | F17: 40 | G17: 1801 | H17: Lanarkshire, Scotland
A18: 518 | B18: 27 | C18: Agness | D18: Carmicheal | E18: Female | F18: 15 | G18: 1826 | H18: Lanarkshire, Scotland
A19: 519 | B19: 27 | C19: Margaret | D19: Carmicheal | E19: Female | F19: 13 | G19: 1828 | H19: Lanarkshire, Scotland
A20: 521 | B20: 28 | C20: Peter | D20: Crossan | E20: Male | F20: 34 | G20: 1807 | H20: Ireland
A21: 522 | B21: 28 | C21: Ann | D21: Crossan | E21: Female | F21: 38 | G21: 1803 | H21: Ireland
A22: 523 | B22: 28 | C22: Peter | D22: Crossan | E22: Male | F22: 16 | G22: 1825 | H22: Lanarkshire, Scotland
A23: 524 | B23: 28 | C23: Catherine | D23: Crossan | E23: Female | F23: 10 | G23: 1831 | H23: Lanarkshire, Scotland
A24: 525 | B24: 28 | C24: Agness | D24: Crossan | E24: Female | F24: 4 | G24: 1837 | H24: Lanarkshire, Scotland
A25: 526 | B25: 28 | C25: Daniel | D25: Crossan | E25: Male | F25: 1 | G25: 1840 | H25: Lanarkshire, Scotland
A26: 527 | B26: 28 | C26: Ann | D26: Harison | E26: Female | F26: 55 | G26: 1786 | H26: Ireland
A27: 528 | B27: 28 | C27: Thomas | D27: Higgins | E27: Male | F27: 60 | G27: 1781 | H27: Ireland
A28: 529 | B28: 28 | C28: Pat | D28: Backs | E28: Male | F28: 15 | G28: 1826 | H28: Ireland
A29: 531 | B29: 29 | C29: John | D29: Sumers | E29: Male | F29: 30 | G29: 1811 | H29: Ireland
A30: 532 | B30: 29 | C30: Nancy | D30: Sumers | E30: Female | F30: 40 | G30: 1801 | H30: Ireland
A31: 533 | B31: 29 | C31: Bryce | D31: Sumers | E31: Male | F31: 20 | G31: 1821 | H31: Ireland
A32: 534 | B32: 29 | C32: Mary | D32: Crossan | E32: Female | F32: 15 | G32: 1826 | H32: Lanarkshire, Scotland
A33: 535 | B33: 29 | C33: John | D33: Crossan | E33: Male | F33: 13 | G33: 1828 | H33: Lanarkshire, Scotland
A34: 536 | B34: 29 | C34: Mary | D34: Docherty | E34: Female | F34: 20 | G34: 1821 | H34: Ireland
A35: 537 | B35: 29 | C35: Nancy | D35: Docherty | E35: Female | F35: 15 | G35: 1826 | H35: Ireland
A36: 538 | B36: 29 | C36: Mary | D36: Docherty | E36: Female | F36: 18 | G36: 1823 | H36: Ireland
A37: 540 | B37: 30 | C37: Margaret | D37: Gowie | E37: Female | F37: 29 | G37: 1812 | H37: Scotland
A38: 541 | B38: 30 | C38: Ann | D38: Gowie | E38: Female | F38: 13 | G38: 1828 | H38: Scotland
A39: 542 | B39: 30 | C39: David | D39: Gowie | E39: Male | F39: 5 | G39: 1836 | H39: Lanarkshire, Scotland
A40: 543 | B40: 30 | C40: Jean | D40: Ingles | E40: Female | F40: 25 | G40: 1816 | H40: Scotland
A41: 545 | B41: 31 | C41: William | D41: McIlneher | E41: Male | F41: 25 | G41: 1816 | H41: Lanarkshire, Scotland
A42: 546 | B42: 31 | C42: Margaret | D42: McIlneher | E42: Female | F42: 20 | G42: 1821 | H42: Lanarkshire, Scotland
A43: 547 | B43: 31 | C43: Robert | D43: Nichal | E43: Male | F43: 50 | G43: 1791 | H43: Ireland
A44: 548 | B44: 31 | C44: Ann | D44: Nichal | E44: Female | F44: 50 | G44: 1791 | H44: Ireland
A45: 549 | B45: 31 | C45: Robert | D45: Nichal | E45: Male | F45: 10 | G45: 1831 | H45: Ireland
A46: 550 | B46: 31 | C46: Thomas | D46: Cully | E46: Male | F46: 22 | G46: 1819 | H46: Ireland
A47: 552 | B47: 32 | C47: Thomas | D47: McCaul | E47: Male | F47: 30 | G47: 1811 | H47: Ireland
A48: 553 | B48: 32 | C48: Rosanah | D48: McCaul | E48: Female | F48: 30 | G48: 1811 | H48: Ireland
A49: 554 | B49: 32 | C49: Timothy | D49: McCaul | E49: Male | F49: 11 | G49: 1830 | H49: Ireland
A50: 555 | B50: 32 | C50: John | D50: Melen | E50: Male | F50: 25 | G50: 1816 | H50: Ireland
A51: 556 | B51: 32 | C51: Archibald | D51: Melen | E51: Male | F51: 18 | G51: 1823 | H51: Ireland
A52: 557 | B52: 32 | C52: James | D52: Kettley | E52: Male | F52: 20 | G52: 1821 | H52: Ireland
A53: 558 | B53: 32 | C53: Helen | D53: McNaulty | E53: Female | F53: 50 | G53: 1791 | H53: Ireland
A54: 559 | B54: 32 | C54: Mary | D54: McCaul | E54: Female | F54: 20 | G54: 1821 | H54: Ireland
A55: 561 | B55: 33 | C55: William | D55: Scott | E55: Male | F55: 25 | G55: 1816 | H55: Scotland
A56: 562 | B56: 33 | C56: Janet | D56: Scott | E56: Female | F56: 20 | G56: 1821 | H56: Lanarkshire, Scotland
A57: 563 | B57: 33 | C57: Margaret | D57: Sutherland | E57: Female | F57: 35 | G57: 1806 | H57: Lanarkshire, Scotland
A58: 564 | B58: 33 | C58: Barbra | D58: Sutherland | E58: Female | F58: 15 | G58: 1826 | H58: Lanarkshire, Scotland
A59: 565 | B59: 33 | C59: James | D59: Sutherland | E59: Male | F59: 13 | G59: 1828 | H59: Lanarkshire, Scotland
A60: 566 | B60: 33 | C60: Agness | D60: Sutherland | E60: Female | F60: 3 | G60: 1838 | H60: Lanarkshire, Scotland
A61: 568 | B61: 34 | C61: Charles | D61: Dufin | E61: Male | F61: 38 | G61: 1803 | H61: Ireland
A62: 569 | B62: 34 | C62: Elizabeth | D62: Dufin | E62: Female | F62: 35 | G62: 1806 | H62: Ireland
A63: 570 | B63: 34 | C63: Margaret | D63: Dufin | E63: Female | F63: 12 | G63: 1829 | H63: Scotland
A64: 571 | B64: 34 | C64: James | D64: Duffin | E64: Male | F64: 8 | G64: 1833 | H64: Scotland
A65: 572 | B65: 34 | C65: Elizabeth | D65: Duffin | E65: Female | F65: 6 | G65: 1835 | H65: Scotland
A66: 573 | B66: 34 | C66: Mary | D66: Duffin | E66: Female | F66: 3 | G66: 1838 | H66: Lanarkshire, Scotland
A67: 575 | B67: 35 | C67: Catherine | D67: Sloan | E67: Female | F67: 40 | G67: 1801 | H67: England
A68: 576 | B68: 35 | C68: John | D68: Sloan | E68: Male | F68: 15 | G68: 1826 | H68: Lanarkshire, Scotland
A69: 577 | B69: 35 | C69: Ann | D69: Sloan | E69: Female | F69: 10 | G69: 1831 | H69: Lanarkshire, Scotland
A70: 578 | B70: 35 | C70: William | D70: Sloan | E70: Male | F70: 5 | G70: 1836 | H70: Lanarkshire, Scotland
A71: 580 | B71: 36 | C71: John | D71: Fitspatrick | E71: Male | F71: 30 | G71: 1811 | H71: Lanarkshire, Scotland
A72: 581 | B72: 36 | C72: Jennet | D72: Fitspatrick | E72: Female | F72: 25 | G72: 1816 | H72: Lanarkshire, Scotland
A73: 582 | B73: 36 | C73: Mary | D73: Fitspatrick | E73: Female | F73: 8 | G73: 1833 | H73: Lanarkshire, Scotland
A74: 583 | B74: 36 | C74: Agness | D74: Fitspatrick | E74: Female | F74: 0 | G74: 1841 | H74: Lanarkshire, Scotland
A75: 585 | B75: 37 | C75: Jennet | D75: Smith | E75: Female | F75: 40 | G75: 1801 | H75: Scotland
A76: 586 | B76: 37 | C76: Elezibeth | D76: Smith | E76: Female | F76: 18 | G76: 1823 | H76: Lanarkshire, Scotland
A77: 587 | B77: 37 | C77: Robert | D77: Smith | E77: Male | F77: 10 | G77: 1831 | H77: Scotland
A78: 588 | B78: 37 | C78: Lillias | D78: Smith | E78: Female | F78: 13 | G78: 1828 | H78: Lanarkshire, Scotland
A79: 590 | B79: 38 | C79: James | D79: Miller | E79: Male | F79: 25 | G79: 1816 | H79: Lanarkshire, Scotland
A80: 591 | B80: 38 | C80: Elizabeth | D80: Miller | E80: Female | F80: 25 | G80: 1816 | H80: Lanarkshire, Scotland
A81: 592 | B81: 38 | C81: Elizabeth | D81: Miller | E81: Female | F81: 6 | G81: 1835 | H81: Lanarkshire, Scotland
A82: 593 | B82: 38 | C82: Cathern | D82: Miller | E82: Female | F82: 4 | G82: 1837 | H82: Scotland
A83: 594 | B83: 38 | C83: David | D83: Miller | E83: Male | F83: 0 | G83: 1841 | H83: Lanarkshire, Scotland
A84: 479 | B84: 39 | C84: James | D84: McIntyre | E84: Male | F84: 30 | G84: 1811 | H84: Lanarkshire, Scotland
A85: 480 | B85: 39 | C85: Isabella | D85: McIntyre | E85: Female | F85: 25 | G85: 1816 | H85: Lanarkshire, Scotland
A86: 481 | B86: 39 | C86: Isabella | D86: McIntyre | E86: Female | F86: 5 | G86: 1836 | H86: Lanarkshire, Scotland
A87: 482 | B87: 39 | C87: James | D87: McIntyre | E87: Male | F87: 3 | G87: 1838 | H87: Lanarkshire, Scotland
A88: 483 | B88: 39 | C88: Christiane | D88: McIntyre | E88: Female | F88: 1 | G88: 1840 | H88: Lanarkshire, Scotland
A89: 484 | B89: 39 | C89: Jean | D89: Shaw | E89: Female | F89: 40 | G89: 1801 | H89: Lanarkshire, Scotland
A90: 485 | B90: 39 | C90: Neil | D90: Shaw | E90: Male | F90: 15 | G90: 1826 | H90: Lanarkshire, Scotland
A91: 486 | B91: 39 | C91: James | D91: Shaw | E91: Male | F91: 14 | G91: 1827 | H91: Lanarkshire, Scotland
A92: 487 | B92: 39 | C92: Jean | D92: Shaw | E92: Female | F92: 10 | G92: 1831 | H92: Lanarkshire, Scotland
A93: 489 | B93: 40 | C93: George | D93: Henderson | E93: Male | F93: 35 | G93: 1806 | H93: Scotland
A94: 490 | B94: 40 | C94: Jean | D94: Henderson | E94: Female | F94: 30 | G94: 1811 | H94: Scotland
A95: 491 | B95: 40 | C95: George | D95: Henderson | E95: Male | F95: 9 | G95: 1832 | H95: Lanarkshire, Scotland
A96: 492 | B96: 40 | C96: Jennet | D96: Henderson | E96: Female | F96: 5 | G96: 1836 | H96: Lanarkshire, Scotland
A97: 493 | B97: 40 | C97: Alex | D97: Chinies | E97: Male | F97: 25 | G97: 1816 | H97: Scotland
A98: 494 | B98: 40 | C98: James | D98: Leviston | E98: Male | F98: 28 | G98: 1813 | H98: Scotland
A99: 495 | B99: 40 | C99: John | D99: Wright | E99: Male | F99: 19 | G99: 1822 | H99: Scotland
A100: 497 | B100: 41 | C100: Daniel | D100: McGregor | E100: Male | F100: 56 | G100: 1785 | H100: Lanarkshire, Scotland
A101: 498 | B101: 41 | C101: Susan | D101: McGregor | E101: Female | F101: 40 | G101: 1801 | H101: Lanarkshire, Scotland
A102: 499 | B102: 41 | C102: Janet | D102: McGregor | E102: Female | F102: 45 | G102: 1796 | H102: Lanarkshire, Scotland
A103: 501 | B103: 42 | C103: Peter | D103: McNaught | E103: Male | F103: 61 | G103: 1780 | H103: Scotland
A104: 502 | B104: 42 | C104: Ellison | D104: McNaught | E104: Female | F104: 65 | G104: 1776 | H104: Scotland
A105: 503 | B105: 42 | C105: Archibald | D105: Wilson | E105: Male | F105: 35 | G105: 1806 | H105: -
A106: 504 | B106: 42 | C106: Jonas | D106: Wilson | E106: Female | F106: 50 | G106: 1791 | H106: England
A107: 506 | B107: 43 | C107: William | D107: Stevenson | E107: Male | F107: 36 | G107: 1805 | H107: Lanarkshire, Scotland
A108: 507 | B108: 43 | C108: Helen | D108: Stevenson | E108: Female | F108: 30 | G108: 1811 | H108: Lanarkshire, Scotland
A109: 427 | B109: 44 | C109: Finlay | D109: Stalker | E109: Male | F109: 40 | G109: 1801 | H109: Scotland
A110: 428 | B110: 44 | C110: Margaret | D110: Stalker | E110: Female | F110: 35 | G110: 1806 | H110: Scotland
A111: 429 | B111: 44 | C111: Isabela | D111: Stalker | E111: Female | F111: 12 | G111: 1829 | H111: Lanarkshire, Scotland
A112: 430 | B112: 44 | C112: John | D112: Stalker | E112: Male | F112: 3 | G112: 1838 | H112: Lanarkshire, Scotland
A113: 431 | B113: 44 | C113: Tinlay | D113: Stalker | E113: Male | F113: 0 | G113: 1841 | H113: Lanarkshire, Scotland
A114: 433 | B114: 45 | C114: John | D114: Ramsay | E114: Male | F114: 54 | G114: 1787 | H114: Scotland
A115: 434 | B115: 45 | C115: Thomas | D115: Jaffray | E115: Male | F115: 6 | G115: 1835 | H115: Lanarkshire, Scotland
A116: 436 | B116: 46 | C116: Walter | D116: Laird | E116: Male | F116: 30 | G116: 1811 | H116: Scotland
A117: 437 | B117: 46 | C117: John | D117: Laird | E117: Male | F117: 6 | G117: 1835 | H117: Lanarkshire, Scotland
A118: 438 | B118: 46 | C118: Ann | D118: Laird | E118: Female | F118: 4 | G118: 1837 | H118: Lanarkshire, Scotland
A119: 439 | B119: 46 | C119: Joseph | D119: Laird | E119: Male | F119: 3 | G119: 1838 | H119: Lanarkshire, Scotland
A120: 440 | B120: 46 | C120: Janet | D120: Laird | E120: Female | F120: 65 | G120: 1776 | H120: Scotland
A121: 442 | B121: 47 | C121: Mary | D121: Cameron | E121: Female | F121: 50 | G121: 1791 | H121: Lanarkshire, Scotland
A122: 443 | B122: 47 | C122: Margaret | D122: Cameron | E122: Female | F122: 20 | G122: 1821 | H122: Lanarkshire, Scotland
A123: 445 | B123: 48 | C123: Jean | D123: Cameron | E123: Female | F123: 19 | G123: 1822 | H123: Lanarkshire, Scotland
A124: 446 | B124: 48 | C124: Marian | D124: Barclay | E124: Female | F124: 20 | G124: 1821 | H124: Lanarkshire, Scotland
A125: 447 | B125: 48 | C125: Margaret | D125: Barclay | E125: Female | F125: 18 | G125: 1823 | H125: -
A126: 448 | B126: 48 | C126: M Wm | D126: Barclay | E126: Male | F126: 14 | G126: 1827 | H126: Scotland
A127: 450 | B127: 49 | C127: David | D127: Henderson | E127: Male | F127: 30 | G127: 1811 | H127: Scotland
A128: 451 | B128: 49 | C128: Elizabeth | D128: Henderson | E128: Female | F128: 25 | G128: 1816 | H128: Scotland
A129: 453 | B129: 50 | C129: James | D129: Henderson | E129: Male | F129: 0 | G129: 1841 | H129: Lanarkshire, Scotland
A130: 454 | B130: 50 | C130: Agness | D130: Agnew | E130: Female | F130: 12 | G130: 1829 | H130: Lanarkshire, Scotland
A131: 455 | B131: 50 | C131: Hendry | D131: Muir | E131: Male | F131: 31 | G131: 1810 | H131: Ireland
A132: 456 | B132: 50 | C132: Mary | D132: Muir | E132: Female | F132: 36 | G132: 1805 | H132: Ireland
A133: 457 | B133: 50 | C133: Jean | D133: Muir | E133: Female | F133: 5 | G133: 1836 | H133: Ireland
A134: 459 | B134: 51 | C134: James | D134: Finlater | E134: Male | F134: 50 | G134: 1791 | H134: Lanarkshire, Scotland
A135: 460 | B135: 51 | C135: Ann | D135: Finlater | E135: Female | F135: 50 | G135: 1791 | H135: Lanarkshire, Scotland
A136: 462 | B136: 52 | C136: James | D136: Little | E136: Male | F136: 46 | G136: 1795 | H136: England
A137: 463 | B137: 52 | C137: James | D137: Little | E137: Male | F137: 17 | G137: 1824 | H137: Lanarkshire, Scotland
A138: 464 | B138: 52 | C138: Robert | D138: Little | E138: Male | F138: 13 | G138: 1828 | H138: Lanarkshire, Scotland
A139: 465 | B139: 52 | C139: Mary | D139: Little | E139: Female | F139: 11 | G139: 1830 | H139: Lanarkshire, Scotland
A140: 467 | B140: 53 | C140: Alexander | D140: Little | E140: Male | F140: 7 | G140: 1834 | H140: Lanarkshire, Scotland
A141: 468 | B141: 53 | C141: John | D141: Muir | E141: Male | F141: 25 | G141: 1816 | H141: Ireland
A142: 469 | B142: 53 | C142: Elizabeth | D142: Muir | E142: Female | F142: 25 | G142: 1816 | H142: England
A143: 470 | B143: 53 | C143: John | D143: Muir | E143: Male | F143: 1 | G143: 1840 | H143: Lanarkshire, Scotland
A144: 471 | B144: 53 | C144: Robert | D144: Muir | E144: Male | F144: 46 | G144: 1795 | H144: Ireland
A145: 472 | B145: 53 | C145: Allan | D145: Scott | E145: Male | F145: 35 | G145: 1806 | H145: Lanarkshire, Scotland
A146: 473 | B146: 53 | C146: William | D146: Scott | E146: Male | F146: 15 | G146: 1826 | H146: Lanarkshire, Scotland
A147: 474 | B147: 53 | C147: Archabilad | D147: Scott | E147: Male | F147: 14 | G147: 1827 | H147: Lanarkshire, Scotland
A148: 475 | B148: 53 | C148: Allan | D148: Scott | E148: Male | F148: 10 | G148: 1831 | H148: Lanarkshire, Scotland
A149: 476 | B149: 53 | C149: Isabella | D149: Scott | E149: Female | F149: 5 | G149: 1836 | H149: Lanarkshire, Scotland
A150: 477 | B150: 53 | C150: Jean | D150: Scott | E150: Female | F150: 4 | G150: 1837 | H150: Lanarkshire, Scotland
A151: 415 | B151: 54 | C151: James | D151: Parcel | E151: Male | F151: 26 | G151: 1815 | H151: Lanarkshire, Scotland
A152: 416 | B152: 54 | C152: Martha | D152: Parcel | E152: Female | F152: 30 | G152: 1811 | H152: Scotland
A153: 417 | B153: 54 | C153: Martha | D153: Parcel | E153: Female | F153: 19 | G153: 1822 | H153: Lanarkshire, Scotland
A154: 418 | B154: 54 | C154: Marian | D154: Parcel | E154: Female | F154: 7 | G154: 1834 | H154: Lanarkshire, Scotland
A155: 419 | B155: 54 | C155: Euphemia | D155: Parcel | E155: Female | F155: 3 | G155: 1838 | H155: Lanarkshire, Scotland
A156: 420 | B156: 54 | C156: Jean | D156: Parcel | E156: Female | F156: 0 | G156: 1841 | H156: Lanarkshire, Scotland
A157: 421 | B157: 54 | C157: Jean | D157: Anderson | E157: Female | F157: 20 | G157: 1821 | H157: -
A158: 408 | B158: 55 | C158: Jennet | D158: McIlneher | E158: Female | F158: 38 | G158: 1803 | H158: Scotland
A159: 409 | B159: 55 | C159: James | D159: McIlneher | E159: Male | F159: 15 | G159: 1826 | H159: Lanarkshire, Scotland
A160: 410 | B160: 55 | C160: Margaret | D160: McIlneher | E160: Female | F160: 13 | G160: 1828 | H160: Lanarkshire, Scotland
A161: 411 | B161: 55 | C161: Jennet | D161: McIlneher | E161: Female | F161: 8 | G161: 1833 | H161: Lanarkshire, Scotland
A162: 412 | B162: 55 | C162: Mary | D162: McIlneher | E162: Female | F162: 6 | G162: 1835 | H162: Lanarkshire, Scotland
A163: 413 | B163: 55 | C163: William | D163: McIlneher | E163: Male | F163: 4 | G163: 1837 | H163: Lanarkshire, Scotland
A164: 238 | B164: 56 | C164: Walter | D164: Dougald | E164: Male | F164: 30 | G164: 1811 | H164: Lanarkshire, Scotland
A165: 239 | B165: 56 | C165: Sophia | D165: Dougald | E165: Female | F165: 27 | G165: 1814 | H165: Ireland
A166: 240 | B166: 56 | C166: David | D166: Dougald | E166: Male | F166: 65 | G166: 1776 | H166: Scotland
A167: 242 | B167: 57 | C167: Terrence | D167: McThaen | E167: Male | F167: 25 | G167: 1816 | H167: Ireland
A168: 243 | B168: 57 | C168: Ann | D168: McThaen | E168: Female | F168: 20 | G168: 1821 | H168: Ireland
A169: 244 | B169: 57 | C169: James | D169: McThaen | E169: Male | F169: 0 | G169: 1841 | H169: Lanarkshire, Scotland
A170: 246 | B170: 58 | C170: Michael | D170: Goodwin | E170: Male | F170: 40 | G170: 1801 | H170: Ireland
A171: 247 | B171: 58 | C171: Mary | D171: Goodwin | E171: Female | F171: 60 | G171: 1781 | H171: Ireland
A172: 248 | B172: 58 | C172: Mary | D172: Goodwin | E172: Female | F172: 17 | G172: 1824 | H172: Scotland
A173: 249 | B173: 58 | C173: Sarah | D173: Goodwin | E173: Female | F173: 13 | G173: 1828 | H173: Scotland
A174: 250 | B174: 58 | C174: Francis | D174: Mulqueen | E174: Male | F174: 50 | G174: 1791 | H174: Ireland
A175: 1 | B175: 59 | C175: John | D175: Hamilton | E175: Male | F175: 45 | G175: 1796 | H175: Scotland
A176: 2 | B176: 59 | C176: George | D176: Knox | E176: Male | F176: 30 | G176: 1811 | H176: Lanarkshire, Scotland
A177: 3 | B177: 59 | C177: William | D177: Ingles | E177: Male | F177: 35 | G177: 1806 | H177: Lanarkshire, Scotland
A178: 4 | B178: 59 | C178: Alexander | D178: Grieve | E178: Male | F178: 40 | G178: 1801 | H178: Scotland
A179: 5 | B179: 59 | C179: James | D179: Buchanan | E179: Male | F179: 35 | G179: 1806 | H179: Lanarkshire, Scotland
A180: 6 | B180: 59 | C180: James | D180: Davie | E180: Male | F180: 35 | G180: 1806 | H180: Scotland
A181: 252 | B181: 59 | C181: John | D181: McNeel | E181: Male | F181: 25 | G181: 1816 | H181: Scotland
A182: 253 | B182: 59 | C182: Margaret | D182: McNeel | E182: Female | F182: 25 | G182: 1816 | H182: Scotland
A183: 254 | B183: 59 | C183: Jennet | D183: McNeel | E183: Female | F183: 5 | G183: 1836 | H183: Scotland
A184: 255 | B184: 59 | C184: Alexander | D184: McNeel | E184: Male | F184: 1 | G184: 1840 | H184: Lanarkshire, Scotland
A185: 256 | B185: 59 | C185: Nk | D185: - | E185: Male | F185: 0 | G185: 1841 | H185: Lanarkshire, Scotland
A186: 8 | B186: 60 | C186: Margaret | D186: Leatch | E186: Female | F186: 70 | G186: 1771 | H186: Lanarkshire, Scotland
A187: 9 | B187: 60 | C187: Ann | D187: Leatch | E187: Female | F187: 25 | G187: 1816 | H187: Lanarkshire, Scotland
A188: 10 | B188: 60 | C188: John | D188: Leatch | E188: Male | F188: 25 | G188: 1816 | H188: Lanarkshire, Scotland
A189: 11 | B189: 60 | C189: John | D189: McGregor | E189: Male | F189: 3 | G189: 1838 | H189: Lanarkshire, Scotland
A190: 258 | B190: 60 | C190: John | D190: Manson | E190: Male | F190: 24 | G190: 1817 | H190: Lanarkshire, Scotland
A191: 259 | B191: 60 | C191: Manrien | D191: Manson | E191: Female | F191: 24 | G191: 1817 | H191: Lanarkshire, Scotland
A192: 260 | B192: 60 | C192: Agness | D192: Manson | E192: Female | F192: 4 | G192: 1837 | H192: Lanarkshire, Scotland
A193: 261 | B193: 60 | C193: Robert | D193: Manson | E193: Male | F193: 2 | G193: 1839 | H193: Lanarkshire, Scotland
A194: 262 | B194: 60 | C194: Jean | D194: Simpson | E194: Female | F194: 20 | G194: 1821 | H194: -
A195: 13 | B195: 61 | C195: William | D195: White | E195: Male | F195: 60 | G195: 1781 | H195: Lanarkshire, Scotland
A196: 264 | B196: 61 | C196: Andrew | D196: Carter | E196: Male | F196: 34 | G196: 1807 | H196: Scotland
A197: 265 | B197: 61 | C197: Margaret | D197: Carter | E197: Female | F197: 30 | G197: 1811 | H197: Lanarkshire, Scotland
A198: 266 | B198: 61 | C198: Andrew | D198: Carter | E198: Male | F198: - | G198: - | H198: Lanarkshire, Scotland
A199: 267 | B199: 61 | C199: Isabell | D199: Carter | E199: Female | F199: 9 | G199: 1832 | H199: Lanarkshire, Scotland
A200: 15 | B200: 62 | C200: Margaret | D200: McLachlen | E200: Female | F200: 75 | G200: 1766 | H200: Scotland
... 309 more rows

Sheet age of country of birth
A1: My Index | B1: Schedule | C1: First name(s) | D1: Last name | E1: Sex | F1: Age | G1: Birth year | H1: Birth place | J1: Age | K1: Scotland | L1: Ireland | M1: England | O1: Total | Q1: Age | R1: Scotland | S1: Ireland | T1: England | V1: Total
A2: 603 | B2: 25 | C2: George | D2: Buchanan | E2: Male | F2: 0 | G2: 1841 | H2: Lanarkshire, Scotland | J2: 0-5 | K2: =COUNTIF(H2:H84,"*Scotland*") -> 77 | L2: =COUNTIF(H2:H84,"*Ireland*") -> 6 | M2: =COUNTIF(H2:H84,"*England*") -> 0 | O2: =SUM(K2:N2) -> 83 | Q2: 1-15 | R2: =K2+K5+K9 -> 185 | S2: =L2+L5+L9 -> 24 | T2: =M2+M5+M9 -> 1 | V2: =SUM(R2:T2) -> 210
A3: 583 | B3: 36 | C3: Agness | D3: Fitspatrick | E3: Female | F3: 0 | G3: 1841 | H3: Lanarkshire, Scotland
A4: 594 | B4: 38 | C4: David | D4: Miller | E4: Male | F4: 0 | G4: 1841 | H4: Lanarkshire, Scotland | J4: Age | K4: Scotland | L4: Ireland | M4: England | O4: Total | Q4: Age | R4: Scotland | S4: Ireland | T4: England | V4: Total
A5: 431 | B5: 44 | C5: Tinlay | D5: Stalker | E5: Male | F5: 0 | G5: 1841 | H5: Lanarkshire, Scotland | J5: 6-10 | K5: =COUNTIF(H85:H142,"*Scotland*") -> 50 | L5: =COUNTIF(H85:H142,"*Ireland*") -> 7 | M5: =COUNTIF(H85:H142,"*England*") -> 1 | O5: =SUM(K5:N5) -> 58 | Q5: 16-25 | R5: =K13+K17 -> 73 | S5: =L13+L17 -> 29 | T5: =M13+M17 -> 4 | V5: =SUM(R5:T5) -> 106
A6: 453 | B6: 50 | C6: James | D6: Henderson | E6: Male | F6: 0 | G6: 1841 | H6: Lanarkshire, Scotland
A7: 420 | B7: 54 | C7: Jean | D7: Parcel | E7: Female | F7: 0 | G7: 1841 | H7: Lanarkshire, Scotland | Q7: Age | R7: Scotland | S7: Ireland | T7: England | V7: Total
A8: 244 | B8: 57 | C8: James | D8: McThaen | E8: Male | F8: 0 | G8: 1841 | H8: Lanarkshire, Scotland | J8: Age | K8: Scotland | L8: Ireland | M8: England | O8: Total | Q8: 26-40 | R8: =K21+K24 -> 81 | S8: =L21+L24 -> 35 | T8: =M21+M24 -> 3 | V8: =SUM(R8:T8) -> 119
A9: 256 | B9: 59 | C9: Nk | D9: - | E9: Male | F9: 0 | G9: 1841 | H9: Lanarkshire, Scotland | J9: 11-15 | K9: =COUNTIF(H143:H212,"*Scotland*") -> 58 | L9: =COUNTIF(H143:H212,"*Ireland*") -> 11 | M9: =COUNTIF(H143:H212,"*England*") -> 0 | O9: =SUM(K9:N9) -> 69
A10: 25 | B10: 64 | C10: Thomas | D10: Dalgliesh | E10: Male | F10: 0 | G10: 1841 | H10: Lanarkshire, Scotland | Q10: Age | R10: Scotland | S10: Ireland | T10: England | V10: Total
A11: 316 | B11: 71 | C11: Christinia | D11: Brodie | E11: Female | F11: 0 | G11: 1841 | H11: Lanarkshire, Scotland | Q11: 41 and above | R11: =K27+K30+K33 -> 34 | S11: =L27+L30+L33 -> 27 | T11: =M27+M30+M33 -> 3 | V11: =SUM(R11:T11) -> 64
A12: 122 | B12: 74 | C12: Thomas | D12: McHail | E12: Male | F12: 0 | G12: 1841 | H12: Lanarkshire, Scotland | J12: Age | K12: Scotland | L12: Ireland | M12: England | O12: Total
A13: 134 | B13: 76 | C13: Collin | D13: Wallace | E13: Male | F13: 0 | G13: 1841 | H13: Scotland | J13: 16-20 | K13: =COUNTIF(H213:H273,"*Scotland*") -> 39 | L13: =COUNTIF(H213:H273,"*Ireland*") -> 17 | M13: =COUNTIF(H213:H273,"*England*") -> 1 | O13: =SUM(K13:N13) -> 57 | V13: =V2+V5+V8+V11 -> 499
A14: 342 | B14: 76 | C14: Jennet | D14: Campble | E14: Female | F14: 0 | G14: 1841 | H14: Lanarkshire, Scotland | T14: Not Country of Origin | V14: 8
A15: 354 | B15: 78 | C15: James | D15: Cowan | E15: Male | F15: 0 | G15: 1841 | H15: Lanarkshire, Scotland | T15: No age | V15: 1
A16: 368 | B16: 81 | C16: Alexander | D16: Lawrie | E16: Male | F16: 0 | G16: 1841 | H16: Lanarkshire, Scotland | J16: Age | K16: Scotland | L16: Ireland | M16: England | O16: Total
A17: 526 | B17: 28 | C17: Daniel | D17: Crossan | E17: Male | F17: 1 | G17: 1840 | H17: Lanarkshire, Scotland | J17: 21-25 | K17: =COUNTIF(H274:H322,"*Scotland*") -> 34 | L17: =COUNTIF(H274:H322,"*Ireland*") -> 12 | M17: =COUNTIF(H274:H322,"*England*") -> 3 | O17: =SUM(K17:N17) -> 49 | V17: =SUM(V13:V16) -> 508
A18: 483 | B18: 39 | C18: Christiane | D18: McIntyre | E18: Female | F18: 1 | G18: 1840 | H18: Lanarkshire, Scotland
A19: 470 | B19: 53 | C19: John | D19: Muir | E19: Male | F19: 1 | G19: 1840 | H19: Lanarkshire, Scotland
A20: 255 | B20: 59 | C20: Alexander | D20: McNeel | E20: Male | F20: 1 | G20: 1840 | H20: Lanarkshire, Scotland | J20: Age | K20: Scotland | L20: Ireland | M20: England | O20: Total
A21: 40 | B21: 66 | C21: Sarah | D21: Dollan | E21: Female | F21: 1 | G21: 1840 | H21: Lanarkshire, Scotland | J21: 26-30 | K21: =COUNTIF(H323:H373,"*Scotland*") -> 36 | L21: =COUNTIF(H323:H373,"*Ireland*") -> 13 | M21: =COUNTIF(H323:H373,"*England*") -> 2 | O21: =SUM(K21:N21) -> 51
A22: 51 | B22: 66 | C22: Mary | D22: Dick | E22: Female | F22: 1 | G22: 1840 | H22: Lanarkshire, Scotland
A23: 294 | B23: 67 | C23: Elizabeth | D23: Turnbull | E23: Female | F23: 1 | G23: 1840 | H23: Scotland | J23: Age | K23: Scotland | L23: Ireland | M23: England | O23: Total | Q23: Age | R23: Scotland | S23: Ireland | T23: England
A24: 79 | B24: 69 | C24: Thomas | D24: McGowan | E24: Male | F24: 1 | G24: 1840 | H24: Lanarkshire, Scotland | J24: 31-40 | K24: =COUNTIF(H374:H443,"*Scotland*") -> 45 | L24: =COUNTIF(H374:H443,"*Ireland*") -> 22 | M24: =COUNTIF(H374:H443,"*England*") -> 1 | O24: =SUM(K24:N24) -> 68 | Q24: 1-15 | R24: =R2/V2 -> 88.10% | S24: =S2/V2 -> 11.43% | T24: =T2/V2 -> 0.48%
A25: 305 | B25: 69 | C25: Christina | D25: Gardner | E25: Female | F25: 1 | G25: 1840 | H25: Lanarkshire, Scotland | Q25: 16-25 | R25: =R5/V5 -> 68.87% | S25: =S5/V5 -> 27.36% | T25: =T5/V5 -> 3.77%
A26: 322 | B26: 72 | C26: Margaret | D26: Naught | E26: Female | F26: 1 | G26: 1840 | H26: Lanarkshire, Scotland | J26: Age | K26: Scotland | L26: Ireland | M26: England | O26: Total | Q26: 26-40 | R26: =R8/V8 -> 68.07% | S26: =S8/V8 -> 29.41% | T26: =T8/V8 -> 2.52%
A27: 126 | B27: 75 | C27: Mary | D27: Anderson | E27: Female | F27: 1 | G27: 1840 | H27: Lanarkshire, Scotland | J27: 41-50 | K27: =COUNTIF(H444:H478,"*Scotland*") -> 16 | L27: =COUNTIF(H444:H478,"*Ireland*") -> 15 | M27: =COUNTIF(H444:H478,"*England*") -> 3 | O27: =SUM(K27:N27) -> 34 | Q27: 41 and above | R27: =R11/V11 -> 53.13% | S27: =S11/V11 -> 42.19% | T27: =T11/V11 -> 4.69%
A28: 162 | B28: 78 | C28: Thomas | D28: Cunningham | E28: Male | F28: 1 | G28: 1840 | H28: Lanarkshire, Scotland | R28: =AVERAGE(R24:R27) -> 69.54% | S28: =AVERAGE(S24:S27) -> 27.60% | T28: =AVERAGE(T24:T27) -> 2.86%
A29: 175 | B29: 80 | C29: Catherine | D29: McFarlane | E29: Female | F29: 1 | G29: 1840 | H29: Lanarkshire, Scotland | J29: Age | K29: Scotland | L29: Ireland | M29: England | O29: Total
A30: 188 | B30: 82 | C30: Jessie | D30: Morter | E30: Female | F30: 1 | G30: 1840 | H30: Scotland | J30: 51-60 | K30: =COUNTIF(H479:H495,"*Scotland*") -> 8 | L30: =COUNTIF(H479:H495,"*Ireland*") -> 9 | M30: =COUNTIF(H479:H495,"*England*") -> 0 | O30: =SUM(K30:N30) -> 17
A31: 189 | B31: 82 | C31: Margaret | D31: Macinnis | E31: Female | F31: 1 | G31: 1840 | H31: Scotland
A32: 602 | B32: 25 | C32: William | D32: Buchanan | E32: Male | F32: 2 | G32: 1839 | H32: Lanarkshire, Scotland | J32: Age | K32: Scotland | L32: Ireland | M32: England | O32: Total
A33: 512 | B33: 26 | C33: Charles | D33: Kerr | E33: Male | F33: 2 | G33: 1839 | H33: Lanarkshire, Scotland | J33: 61+ | K33: =COUNTIF(H496:H508,"*Scotland*") -> 10 | L33: =COUNTIF(H496:H508,"*Ireland*") -> 3 | M33: =COUNTIF(H496:H508,"*England*") -> 0 | N33: 8 | O33: =SUM(K33:N33) -> 21
A34: 261 | B34: 60 | C34: Robert | D34: Manson | E34: Male | F34: 2 | G34: 1839 | H34: Lanarkshire, Scotland
A35: 97 | B35: 70 | C35: Rob | D35: Orr | E35: Male | F35: 2 | G35: 1839 | H35: Ireland
A36: 143 | B36: 77 | C36: John | D36: McCarn | E36: Male | F36: 2 | G36: 1839 | H36: Lanarkshire, Scotland
A37: 201 | B37: 84 | C37: John | D37: McDonald | E37: Male | F37: 2 | G37: 1839 | H37: Scotland | O37: =SUM(O1:O34) -> 507
A38: 216 | B38: 86 | C38: Peter | D38: Mairs | E38: Male | F38: 2 | G38: 1839 | H38: Lanarkshire, Scotland | N38: No age given | O38: 1
A39: 566 | B39: 33 | C39: Agness | D39: Sutherland | E39: Female | F39: 3 | G39: 1838 | H39: Lanarkshire, Scotland | O39: =O37+O38 -> 508
A40: 573 | B40: 34 | C40: Mary | D40: Duffin | E40: Female | F40: 3 | G40: 1838 | H40: Lanarkshire, Scotland
A41: 482 | B41: 39 | C41: James | D41: McIntyre | E41: Male | F41: 3 | G41: 1838 | H41: Lanarkshire, Scotland
A42: 430 | B42: 44 | C42: John | D42: Stalker | E42: Male | F42: 3 | G42: 1838 | H42: Lanarkshire, Scotland
A43: 439 | B43: 46 | C43: Joseph | D43: Laird | E43: Male | F43: 3 | G43: 1838 | H43: Lanarkshire, Scotland
A44: 419 | B44: 54 | C44: Euphemia | D44: Parcel | E44: Female | F44: 3 | G44: 1838 | H44: Lanarkshire, Scotland
A45: 11 | B45: 60 | C45: John | D45: McGregor | E45: Male | F45: 3 | G45: 1838 | H45: Lanarkshire, Scotland
A46: 63 | B46: 67 | C46: James | D46: Hilly | E46: Male | F46: 3 | G46: 1838 | H46: Scotland
A47: 311 | B47: 70 | C47: Neil | D47: Dorrache | E47: Male | F47: 3 | G47: 1838 | H47: Lanarkshire, Scotland
A48: 341 | B48: 76 | C48: James | D48: Campble | E48: Male | F48: 3 | G48: 1838 | H48: Scotland
A49: 383 | B49: 82 | C49: Jennet | D49: Coupeer | E49: Female | F49: 3 | G49: 1838 | H49: Lanarkshire, Scotland
A50: 405 | B50: 86 | C50: Margaret | D50: McAustin | E50: Female | F50: 3 | G50: 1838 | H50: Lanarkshire, Scotland
A51: 224 | B51: 87 | C51: James | D51: Brigs | E51: Male | F51: 3 | G51: 1838 | H51: Ireland
A52: 601 | B52: 25 | C52: Lawrence | D52: Buchanan | E52: Male | F52: 4 | G52: 1837 | H52: Lanarkshire, Scotland
A53: 525 | B53: 28 | C53: Agness | D53: Crossan | E53: Female | F53: 4 | G53: 1837 | H53: Lanarkshire, Scotland
A54: 593 | B54: 38 | C54: Cathern | D54: Miller | E54: Female | F54: 4 | G54: 1837 | H54: Scotland
A55: 438 | B55: 46 | C55: Ann | D55: Laird | E55: Female | F55: 4 | G55: 1837 | H55: Lanarkshire, Scotland
A56: 477 | B56: 53 | C56: Jean | D56: Scott | E56: Female | F56: 4 | G56: 1837 | H56: Lanarkshire, Scotland
A57: 413 | B57: 55 | C57: William | D57: McIlneher | E57: Male | F57: 4 | G57: 1837 | H57: Lanarkshire, Scotland
A58: 260 | B58: 60 | C58: Agness | D58: Manson | E58: Female | F58: 4 | G58: 1837 | H58: Lanarkshire, Scotland
A59: 96 | B59: 70 | C59: James | D59: Orr | E59: Male | F59: 4 | G59: 1837 | H59: Ireland
A60: 315 | B60: 71 | C60: Margaret | D60: Brodie | E60: Female | F60: 4 | G60: 1837 | H60: Lanarkshire, Scotland
A61: 118 | B61: 73 | C61: George | D61: Paterson | E61: Male | F61: 4 | G61: 1837 | H61: Lanarkshire, Scotland
A62: 186 | B62: 82 | C62: Donald | D62: Martain | E62: Male | F62: 4 | G62: 1837 | H62: Scotland
A63: 215 | B63: 86 | C63: Robert | D63: Mairs | E63: Male | F63: 4 | G63: 1837 | H63: Lanarkshire, Scotland
A64: 236 | B64: 89 | C64: John | D64: McMul | E64: Male | F64: 4 | G64: 1837 | H64: Lanarkshire, Scotland
A65: 542 | B65: 30 | C65: David | D65: Gowie | E65: Male | F65: 5 | G65: 1836 | H65: Lanarkshire, Scotland
A66: 578 | B66: 35 | C66: William | D66: Sloan | E66: Male | F66: 5 | G66: 1836 | H66: Lanarkshire, Scotland
A67: 481 | B67: 39 | C67: Isabella | D67: McIntyre | E67: Female | F67: 5 | G67: 1836 | H67: Lanarkshire, Scotland
A68: 492 | B68: 40 | C68: Jennet | D68: Henderson | E68: Female | F68: 5 | G68: 1836 | H68: Lanarkshire, Scotland
A69: 457 | B69: 50 | C69: Jean | D69: Muir | E69: Female | F69: 5 | G69: 1836 | H69: Ireland
A70: 476 | B70: 53 | C70: Isabella | D70: Scott | E70: Female | F70: 5 | G70: 1836 | H70: Lanarkshire, Scotland
A71: 254 | B71: 59 | C71: Jennet | D71: McNeel | E71: Female | F71: 5 | G71: 1836 | H71: Scotland
A72: 283 | B72: 65 | C72: Elizabeth | D72: Henry | E72: Female | F72: 5 | G72: 1836 | H72: Lanarkshire, Scotland
A73: 39 | B73: 66 | C73: Mary | D73: Dollan | E73: Female | F73: 5 | G73: 1836 | H73: Ireland
A74: 46 | B74: 66 | C74: Mary | D74: McGowan | E74: Female | F74: 5 | G74: 1836 | H74: Lanarkshire, Scotland
A75: 50 | B75: 66 | C75: Jane | D75: Dick | E75: Female | F75: 5 | G75: 1836 | H75: Lanarkshire, Scotland
A76: 89 | B76: 70 | C76: George | D76: Bagnell | E76: Male | F76: 5 | G76: 1836 | H76: Lanarkshire, Scotland
A77: 93 | B77: 70 | C77: Mary | D77: O'Bryan | E77: Female | F77: 5 | G77: 1836 | H77: Lanarkshire, Scotland
A78: 340 | B78: 76 | C78: Catherine | D78: Campble | E78: Female | F78: 5 | G78: 1836 | H78: Scotland
A79: 141 | B79: 77 | C79: Patrick | D79: McCarn | E79: Male | F79: 5 | G79: 1836 | H79: Lanarkshire, Scotland
A80: 142 | B80: 77 | C80: Catherine | D80: McCarn | E80: Female | F80: 5 | G80: 1836 | H80: Lanarkshire, Scotland
A81: 377 | B81: 82 | C81: James | D81: Roberton | E81: Male | F81: 5 | G81: 1836 | H81: Lanarkshire, Scotland
A82: 194 | B82: 83 | C82: Ann | D82: Chalmers | E82: Female | F82: 5 | G82: 1836 | H82: Lanarkshire, Scotland
A83: 404 | B83: 86 | C83: Mary | D83: McAustin | E83: Female | F83: 5 | G83: 1836 | H83: Lanarkshire, Scotland
A84: 223 | B84: 87 | C84: Catherine | D84: Brigs | E84: Female | F84: 5 | G84: 1836 | H84: Ireland
A85: 600 | B85: 25 | C85: Jean | D85: Buchanan | E85: Female | F85: 6 | G85: 1835 | H85: Lanarkshire, Scotland
A86: 572 | B86: 34 | C86: Elizabeth | D86: Duffin | E86: Female | F86: 6 | G86: 1835 | H86: Scotland
A87: 592 | B87: 38 | C87: Elizabeth | D87: Miller | E87: Female | F87: 6 | G87: 1835 | H87: Lanarkshire, Scotland
A88: 434 | B88: 45 | C88: Thomas | D88: Jaffray | E88: Male | F88: 6 | G88: 1835 | H88: Lanarkshire, Scotland
A89: 437 | B89: 46 | C89: John | D89: Laird | E89: Male | F89: 6 | G89: 1835 | H89: Lanarkshire, Scotland
A90: 412 | B90: 55 | C90: Mary | D90: McIlneher | E90: Female | F90: 6 | G90: 1835 | H90: Lanarkshire, Scotland
A91: 277 | B91: 64 | C91: Thomas | D91: Spencer | E91: Male | F91: 6 | G91: 1835 | H91: England
A92: 133 | B92: 76 | C92: Robert | D92: Wallace | E92: Male | F92: 6 | G92: 1835 | H92: Scotland
A93: 153 | B93: 78 | C93: Michael | D93: Sherkey | E93: Female | F93: 6 | G93: 1835 | H93: Ireland
A94: 214 | B94: 86 | C94: James | D94: Mairs | E94: Male | F94: 6 | G94: 1835 | H94: Lanarkshire, Scotland
A95: 511 | B95: 26 | C95: Mary | D95: Kerr | E95: Female | F95: 7 | G95: 1834 | H95: Lanarkshire, Scotland
A96: 467 | B96: 53 | C96: Alexander | D96: Little | E96: Male | F96: 7 | G96: 1834 | H96: Lanarkshire, Scotland
A97: 418 | B97: 54 | C97: Marian | D97: Parcel | E97: Female | F97: 7 | G97: 1834 | H97: Lanarkshire, Scotland
A98: 282 | B98: 65 | C98: Samuel | D98: Henry | E98: Male | F98: 7 | G98: 1834 | H98: Lanarkshire, Scotland
A99: 300 | B99: 68 | C99: Racheal | D99: Muir | E99: Female | F99: 7 | G99: 1834 | H99: Lanarkshire, Scotland
A100: 117 | B100: 73 | C100: Margaret | D100: Paterson | E100: Female | F100: 7 | G100: 1834 | H100: Lanarkshire, Scotland
A101: 336 | B101: 75 | C101: James | D101: Steven | E101: Male | F101: 7 | G101: 1834 | H101: Lanarkshire, Scotland
A102: 170 | B102: 79 | C102: Andrew | D102: Dobbie | E102: Male | F102: 7 | G102: 1834 | H102: Lanarkshire, Scotland
A103: 182 | B103: 81 | C103: George | D103: McGill | E103: Male | F103: 7 | G103: 1834 | H103: Lanarkshire, Scotland
A104: 222 | B104: 87 | C104: Mary | D104: Brigs | E104: Female | F104: 7 | G104: 1834 | H104: Ireland
A105: 599 | B105: 25 | C105: John | D105: Buchanan | E105: Male | F105: 8 | G105: 1833 | H105: Lanarkshire, Scotland
A106: 571 | B106: 34 | C106: James | D106: Duffin | E106: Male | F106: 8 | G106: 1833 | H106: Scotland
A107: 582 | B107: 36 | C107: Mary | D107: Fitspatrick | E107: Female | F107: 8 | G107: 1833 | H107: Lanarkshire, Scotland
A108: 411 | B108: 55 | C108: Jennet | D108: McIlneher | E108: Female | F108: 8 | G108: 1833 | H108: Lanarkshire, Scotland
A109: 33 | B109: 65 | C109: Terressy | D109: Marlay | E109: Female | F109: 8 | G109: 1833 | H109: Lanarkshire, Scotland
A110: 326 | B110: 73 | C110: Mary | D110: Smith | E110: Female | F110: 8 | G110: 1833 | H110: Lanarkshire, Scotland
A111: 491 | B111: 40 | C111: George | D111: Henderson | E111: Male | F111: 9 | G111: 1832 | H111: Lanarkshire, Scotland
A112: 267 | B112: 61 | C112: Isabell | D112: Carter | E112: Female | F112: 9 | G112: 1832 | H112: Lanarkshire, Scotland
A113: 26 | B113: 64 | C113: Mary | D113: Allan | E113: Female | F113: 9 | G113: 1832 | H113: Scotland
A114: 281 | B114: 65 | C114: George | D114: Henry | E114: Male | F114: 9 | G114: 1832 | H114: Lanarkshire, Scotland
A115: 335 | B115: 75 | C115: John | D115: Steven | E115: Male | F115: 9 | G115: 1832 | H115: Lanarkshire, Scotland
A116: 350 | B116: 77 | C116: Elezibeth | D116: Mitchell | E116: Female | F116: 9 | G116: 1832 | H116: Lanarkshire, Scotland
A117: 152 | B117: 78 | C117: Lowise | D117: Sherkey | E117: Female | F117: 9 | G117: 1832 | H117: Ireland
A118: 169 | B118: 79 | C118: James | D118: Dobbie | E118: Male | F118: 9 | G118: 1832 | H118: Lanarkshire, Scotland
A119: 376 | B119: 82 | C119: Mary | D119: Roberton | E119: Female | F119: 9 | G119: 1832 | H119: Lanarkshire, Scotland
A120: 403 | B120: 86 | C120: Archibald | D120: McAustin | E120: Male | F120: 9 | G120: 1832 | H120: Lanarkshire, Scotland
A121: 598 | B121: 25 | C121: David | D121: Buchanan | E121: Male | F121: 10 | G121: 1831 | H121: Lanarkshire, Scotland
A122: 524 | B122: 28 | C122: Catherine | D122: Crossan | E122: Female | F122: 10 | G122: 1831 | H122: Lanarkshire, Scotland
A123: 549 | B123: 31 | C123: Robert | D123: Nichal | E123: Male | F123: 10 | G123: 1831 | H123: Ireland
A124: 577 | B124: 35 | C124: Ann | D124: Sloan | E124: Female | F124: 10 | G124: 1831 | H124: Lanarkshire, Scotland
A125: 587 | B125: 37 | C125: Robert | D125: Smith | E125: Male | F125: 10 | G125: 1831 | H125: Scotland
A126: 487 | B126: 39 | C126: Jean | D126: Shaw | E126: Female | F126: 10 | G126: 1831 | H126: Lanarkshire, Scotland
A127: 475 | B127: 53 | C127: Allan | D127: Scott | E127: Male | F127: 10 | G127: 1831 | H127: Lanarkshire, Scotland
A128: 55 | B128: 67 | C128: Mary | D128: Hanna | E128: Female | F128: 10 | G128: 1831 | H128: Scotland
A129: 60 | B129: 67 | C129: Archibald | D129: Thomson | E129: Male | F129: 10 | G129: 1831 | H129: Scotland
A130: 82 | B130: 69 | C130: Janet | D130: Stewart | E130: Female | F130: 10 | G130: 1831 | H130: Scotland
A131: 83 | B131: 69 | C131: Hamilton | D131: Hay | E131: Male | F131: 10 | G131: 1831 | H131: Lanarkshire, Scotland
A132: 85 | B132: 69 | C132: Agnes | D132: McKean | E132: Female | F132: 10 | G132: 1831 | H132: Scotland
A133: 90 | B133: 70 | C133: John | D133: O'Bryan | E133: Male | F133: 10 | G133: 1831 | H133: Lanarkshire, Scotland
A134: 91 | B134: 70 | C134: Philip | D134: O'Bryan | E134: Male | F134: 10 | G134: 1831 | H134: Ireland
A135: 92 | B135: 70 | C135: Penelopy | D135: O'Bryan | E135: Female | F135: 10 | G135: 1831 | H135: Lanarkshire, Scotland
A136: 116 | B136: 73 | C136: Jenat | D136: Paterson | E136: Female | F136: 10 | G136: 1831 | H136: Lanarkshire, Scotland
A137: 140 | B137: 77 | C137: Margaret | D137: McCarn | E137: Female | F137: 10 | G137: 1831 | H137: Ireland
A138: 349 | B138: 77 | C138: John | D138: Mitchell | E138: Male | F138: 10 | G138: 1831 | H138: Scotland
A139: 181 | B139: 81 | C139: William | D139: McGill | E139: Male | F139: 10 | G139: 1831 | H139: Lanarkshire, Scotland
A140: 193 | B140: 83 | C140: David | D140: Chalmers | E140: Male | F140: 10 | G140: 1831 | H140: Lanarkshire, Scotland
A141: 213 | B141: 86 | C141: Letitia | D141: Mairs | E141: Female | F141: 10 | G141: 1831 | H141: Lanarkshire, Scotland
A142: 220 | B142: 87 | C142: Margaret | D142: Brigs | E142: Female | F142: 10 | G142: 1831 | H142: Ireland
A143: 554 | B143: 32 | C143: Timothy | D143: McCaul | E143: Male | F143: 11 | G143: 1830 | H143: Ireland
A144: 465 | B144: 52 | C144: Mary | D144: Little | E144: Female | F144: 11 | G144: 1830 | H144: Lanarkshire, Scotland
A145: 32 | B145: 65 | C145: Mary | D145: Marlay | E145: Female | F145: 11 | G145: 1830 | H145: Lanarkshire, Scotland
A146: 151 | B146: 78 | C146: Hugh | D146: Sherkey | E146: Male | F146: 11 | G146: 1830 | H146: Ireland
A147: 168 | B147: 79 | C147: Alexander | D147: Dobbie | E147: Male | F147: 11 | G147: 1830 | H147: Lanarkshire, Scotland
A148: 570 | B148: 34 | C148: Margaret | D148: Dufin | E148: Female | F148: 12 | G148: 1829 | H148: Scotland
A149: 429 | B149: 44 | C149: Isabela | D149: Stalker | E149: Female | F149: 12 | G149: 1829 | H149: Lanarkshire, Scotland
A150: 454 | B150: 50 | C150: Agness | D150: Agnew | E150: Female | F150: 12 | G150: 1829 | H150: Lanarkshire, Scotland
A151: 31 | B151: 65 | C151: Bridget | D151: Marlay | E151: Female | F151: 12 | G151: 1829 | H151: Lanarkshire, Scotland
A152: 293 | B152: 67 | C152: Robert | D152: Turnbull | E152: Male | F152: 12 | G152: 1829 | H152: Scotland
A153: 310 | B153: 70 | C153: David | D153: Dorrache | E153: Male | F153: 12 | G153: 1829 | H153: Lanarkshire, Scotland
A154: 221 | B154: 87 | C154: John | D154: Brigs | E154: Male | F154: 12 | G154: 1829 | H154: Ireland
A155: 519 | B155: 27 | C155: Margaret | D155: Carmicheal | E155: Female | F155: 13 | G155: 1828 | H155: Lanarkshire, Scotland
A156: 535 | B156: 29 | C156: John | D156: Crossan | E156: Male | F156: 13 | G156: 1828 | H156: Lanarkshire, Scotland
A157: 541 | B157: 30 | C157: Ann | D157: Gowie | E157: Female | F157: 13 | G157: 1828 | H157: Scotland
A158: 565 | B158: 33 | C158: James | D158: Sutherland | E158: Male | F158: 13 | G158: 1828 | H158: Lanarkshire, Scotland
A159: 588 | B159: 37 | C159: Lillias | D159: Smith | E159: Female | F159: 13 | G159: 1828 | H159: Lanarkshire, Scotland
A160: 464 | B160: 52 | C160: Robert | D160: Little | E160: Male | F160: 13 | G160: 1828 | H160: Lanarkshire, Scotland
A161: 410 | B161: 55 | C161: Margaret | D161: McIlneher | E161: Female | F161: 13 | G161: 1828 | H161: Lanarkshire, Scotland
A162: 249 | B162: 58 | C162: Sarah | D162: Goodwin | E162: Female | F162: 13 | G162: 1828 | H162: Scotland
A163: 299 | B163: 68 | C163: James | D163: Muir | E163: Male | F163: 13 | G163: 1828 | H163: Lanarkshire, Scotland
A164: 334 | B164: 75 | C164: Robert | D164: Steven | E164: Male | F164: 13 | G164: 1828 | H164: Lanarkshire, Scotland
A165: 149 | B165: 78 | C165: Catherine | D165: Sherkey | E165: Female | F165: 13 | G165: 1828 | H165: Ireland
A166: 167 | B166: 79 | C166: David | D166: Dobbie | E166: Male | F166: 13 | G166: 1828 | H166: Lanarkshire, Scotland
A167: 180 | B167: 81 | C167: Hugh | D167: McGill | E167: Male | F167: 13 | G167: 1828 | H167: Lanarkshire, Scotland
A168: 375 | B168: 82 | C168: Johnston | D168: Roberton | E168: Male | F168: 13 | G168: 1828 | H168: Scotland
A169: 378 | B169: 82 | C169: Helen | D169: Roberton | E169: Female | F169: 13 | G169: 1828 | H169: -
A170: 206 | B170: 85 | C170: Felix | D170: O'Hara | E170: Male | F170: 13 | G170: 1828 | H170: Lanarkshire, Scotland
A171: 232 | B171: 88 | C171: Hugh | D171: McAllister | E171: Male | F171: 13 | G171: 1828 | H171: Lanarkshire, Scotland
A172: 486 | B172: 39 | C172: James | D172: Shaw | E172: Male | F172: 14 | G172: 1827 | H172: Lanarkshire, Scotland
A173: 448 | B173: 48 | C173: M Wm | D173: Barclay | E173: Male | F173: 14 | G173: 1827 | H173: Scotland
A174: 474 | B174: 53 | C174: Archabilad | D174: Scott | E174: Male | F174: 14 | G174: 1827 | H174: Lanarkshire, Scotland
A175: 30 | B175: 65 | C175: Ann | D175: Marlay | E175: Female | F175: 14 | G175: 1827 | H175: Lanarkshire, Scotland
A176: 156 | B176: 78 | C176: Patrick | D176: Maden | E176: Male | F176: 14 | G176: 1827 | H176: Ireland
A177: 394 | B177: 84 | C177: Henry | D177: Bruce | E177: Male | F177: 14 | G177: 1827 | H177: Scotland
A178: 205 | B178: 85 | C178: Ann | D178: O'Hara | E178: Female | F178: 14 | G178: 1827 | H178: Lanarkshire, Scotland
A179: 235 | B179: 89 | C179: Charles | D179: McMul | E179: Male | F179: 14 | G179: 1827 | H179: Lanarkshire, Scotland
A180: 518 | B180: 27 | C180: Agness | D180: Carmicheal | E180: Female | F180: 15 | G180: 1826 | H180: Lanarkshire, Scotland
A181: 529 | B181: 28 | C181: Pat | D181: Backs | E181: Male | F181: 15 | G181: 1826 | H181: Ireland
A182: 534 | B182: 29 | C182: Mary | D182: Crossan | E182: Female | F182: 15 | G182: 1826 | H182: Lanarkshire, Scotland
A183: 537 | B183: 29 | C183: Nancy | D183: Docherty | E183: Female | F183: 15 | G183: 1826 | H183: Ireland
A184: 564 | B184: 33 | C184: Barbra | D184: Sutherland | E184: Female | F184: 15 | G184: 1826 | H184: Lanarkshire, Scotland
A185: 576 | B185: 35 | C185: John | D185: Sloan | E185: Male | F185: 15 | G185: 1826 | H185: Lanarkshire, Scotland
A186: 485 | B186: 39 | C186: Neil | D186: Shaw | E186: Male | F186: 15 | G186: 1826 | H186: Lanarkshire, Scotland
A187: 473 | B187: 53 | C187: William | D187: Scott | E187: Male | F187: 15 | G187: 1826 | H187: Lanarkshire, Scotland
A188: 409 | B188: 55 | C188: James | D188: McIlneher | E188: Male | F188: 15 | G188: 1826 | H188: Lanarkshire, Scotland
A189: 45 | B189: 66 | C189: Patrick | D189: McGowan | E189: Male | F189: 15 | G189: 1826 | H189: Lanarkshire, Scotland
A190: 289 | B190: 66 | C190: Isabella | D190: Freil | E190: Female | F190: 15 | G190: 1826 | H190: Lanarkshire, Scotland
A191: 65 | B191: 67 | C191: John | D191: Knox | E191: Male | F191: 15 | G191: 1826 | H191: Scotland
A192: 70 | B192: 68 | C192: Margaret | D192: Gillies | E192: Female | F192: 15 | G192: 1826 | H192: Lanarkshire, Scotland
A193: 298 | B193: 68 | C193: William | D193: Anderson | E193: Male | F193: 15 | G193: 1826 | H193: Lanarkshire, Scotland
A194: 309 | B194: 70 | C194: Charles | D194: Dorrache | E194: Male | F194: 15 | G194: 1826 | H194: Lanarkshire, Scotland
A195: 103 | B195: 71 | C195: William | D195: Stewart | E195: Male | F195: 15 | G195: 1826 | H195: Scotland
A196: 106 | B196: 71 | C196: Alexander | D196: Fraser | E196: Male | F196: 15 | G196: 1826 | H196: Scotland
A197: 107 | B197: 71 | C197: Angus | D197: Fraser | E197: Male | F197: 15 | G197: 1826 | H197: Scotland
A198: 320 | B198: 72 | C198: Jean | D198: Johnston | E198: Female | F198: 15 | G198: 1826 | H198: Lanarkshire, Scotland
A199: 139 | B199: 77 | C199: Biddy | D199: McCarn | E199: Female | F199: 15 | G199: 1826 | H199: Ireland
A200: 150 | B200: 78 | C200: James | D200: Sherkey | E200: Male | F200: 15 | G200: 1826 | H200: Ireland
... 309 more rows

Sheet sex of residents
C1: FEMALES | D1: 254 | K1: MALES | L1: 254 | N1: that is surprising !!!
A3: My Index | B3: Schedule | C3: First name(s) | D3: Last name | E3: Sex | F3: Age | G3: Birth year | H3: Birth place | J3: My Index | K3: Schedule | L3: First name(s) | M3: Last name | N3: Sex | O3: Age | P3: Birth year | Q3: Birth place
A4: 8 | B4: 60 | C4: Margaret | D4: Leatch | E4: Female | F4: 70 | G4: 1771 | H4: Lanarkshire, Scotland | J4: 1 | K4: 59 | L4: John | M4: Hamilton | N4: Male | O4: 45 | P4: 1796 | Q4: Scotland
A5: 9 | B5: 60 | C5: Ann | D5: Leatch | E5: Female | F5: 25 | G5: 1816 | H5: Lanarkshire, Scotland | J5: 2 | K5: 59 | L5: George | M5: Knox | N5: Male | O5: 30 | P5: 1811 | Q5: Lanarkshire, Scotland
A6: 15 | B6: 62 | C6: Margaret | D6: McLachlen | E6: Female | F6: 75 | G6: 1766 | H6: Scotland | J6: 3 | K6: 59 | L6: William | M6: Ingles | N6: Male | O6: 35 | P6: 1806 | Q6: Lanarkshire, Scotland
A7: 16 | B7: 62 | C7: Jane | D7: McLaghlen | E7: Female | F7: 40 | G7: 1801 | H7: Scotland | J7: 4 | K7: 59 | L7: Alexander | M7: Grieve | N7: Male | O7: 40 | P7: 1801 | Q7: Scotland
A8: 17 | B8: 62 | C8: Catherine | D8: McLaghlen | E8: Female | F8: 25 | G8: 1816 | H8: Lanarkshire, Scotland | J8: 5 | K8: 59 | L8: James | M8: Buchanan | N8: Male | O8: 35 | P8: 1806 | Q8: Lanarkshire, Scotland
A9: 24 | B9: 64 | C9: Ellen | D9: Dalgliesh | E9: Female | F9: 25 | G9: 1816 | H9: Scotland | J9: 6 | K9: 59 | L9: James | M9: Davie | N9: Male | O9: 35 | P9: 1806 | Q9: Scotland
A10: 26 | B10: 64 | C10: Mary | D10: Allan | E10: Female | F10: 9 | G10: 1832 | H10: Scotland | J10: 10 | K10: 60 | L10: John | M10: Leatch | N10: Male | O10: 25 | P10: 1816 | Q10: Lanarkshire, Scotland
A11: 29 | B11: 65 | C11: Mary | D11: Marlay | E11: Female | F11: 40 | G11: 1801 | H11: Ireland | J11: 11 | K11: 60 | L11: John | M11: McGregor | N11: Male | O11: 3 | P11: 1838 | Q11: Lanarkshire, Scotland
A12: 30 | B12: 65 | C12: Ann | D12: Marlay | E12: Female | F12: 14 | G12: 1827 | H12: Lanarkshire, Scotland | J12: 13 | K12: 61 | L12: William | M12: White | N12: Male | O12: 60 | P12: 1781 | Q12: Lanarkshire, Scotland | R12: Night watch
A13: 31 | B13: 65 | C13: Bridget | D13: Marlay | E13: Female | F13: 12 | G13: 1829 | H13: Lanarkshire, Scotland | J13: 19 | K13: 63 | L13: James | M13: Spright | N13: Male | O13: 20 | P13: 1821 | Q13: Lanarkshire, Scotland
A14: 32 | B14: 65 | C14: Mary | D14: Marlay | E14: Female | F14: 11 | G14: 1830 | H14: Lanarkshire, Scotland | J14: 20 | K14: 63 | L14: Colven | M14: Woods | N14: Male | O14: 30 | P14: 1811 | Q14: Ireland
A15: 33 | B15: 65 | C15: Terressy | D15: Marlay | E15: Female | F15: 8 | G15: 1833 | H15: Lanarkshire, Scotland | J15: 23 | K15: 64 | L15: John | M15: Dalgliesh | N15: Male | O15: 25 | P15: 1816 | Q15: Scotland
A16: 34 | B16: 65 | C16: Bridget | D16: McAvoy | E16: Female | F16: 28 | G16: 1813 | H16: Ireland | J16: 25 | K16: 64 | L16: Thomas | M16: Dalgliesh | N16: Male | O16: 0 | P16: 1841 | Q16: Lanarkshire, Scotland
A17: 35 | B17: 65 | C17: Sarah | D17: McCallay | E17: Female | F17: 20 | G17: 1821 | H17: Lanarkshire, Scotland | J17: 37 | K17: 66 | L17: Michael | M17: Dollan | N17: Male | O17: 35 | P17: 1806 | Q17: Ireland
A18: 38 | B18: 66 | C18: Sarah | D18: Dollan | E18: Female | F18: 35 | G18: 1806 | H18: Ireland | J18: 41 | K18: 66 | L18: Henry | M18: Grieve | N18: Male | O18: 30 | P18: 1811 | Q18: Lanarkshire, Scotland
A19: 39 | B19: 66 | C19: Mary | D19: Dollan | E19: Female | F19: 5 | G19: 1836 | H19: Ireland | J19: 43 | K19: 66 | L19: Patrick | M19: McGowan | N19: Male | O19: 40 | P19: 1801 | Q19: Ireland
A20: 40 | B20: 66 | C20: Sarah | D20: Dollan | E20: Female | F20: 1 | G20: 1840 | H20: Lanarkshire, Scotland | J20: 45 | K20: 66 | L20: Patrick | M20: McGowan | N20: Male | O20: 15 | P20: 1826 | Q20: Lanarkshire, Scotland
A21: 42 | B21: 66 | C21: Isabella | D21: Grieve | E21: Female | F21: 20 | G21: 1821 | H21: Lanarkshire, Scotland | J21: 53 | K21: 67 | L21: Patrick | M21: Hanna | N21: Male | O21: 45 | P21: 1796 | Q21: Ireland
A22: 44 | B22: 66 | C22: Mary | D22: McGowan | E22: Female | F22: 40 | G22: 1801 | H22: Ireland | J22: 57 | K22: 67 | L22: William | M22: Doherty | N22: Male | O22: 35 | P22: 1806 | Q22: Ireland
A23: 46 | B23: 66 | C23: Mary | D23: McGowan | E23: Female | F23: 5 | G23: 1836 | H23: Lanarkshire, Scotland | J23: 58 | K23: 67 | L23: Thomas | M23: White | N23: Male | O23: 50 | P23: 1791 | Q23: Scotland
A24: 47 | B24: 66 | C24: Widow | D24: McDead | E24: Female | F24: 75 | G24: 1766 | H24: Ireland | J24: 59 | K24: 67 | L24: Archibald | M24: Thomson | N24: Male | O24: 35 | P24: 1806 | Q24: Scotland
A25: 48 | B25: 66 | C25: Mary | D25: Alexander | E25: Female | F25: 20 | G25: 1821 | H25: Lanarkshire, Scotland | J25: 60 | K25: 67 | L25: Archibald | M25: Thomson | N25: Male | O25: 10 | P25: 1831 | Q25: Scotland
A26: 49 | B26: 66 | C26: Catherine | D26: Dick | E26: Female | F26: 40 | G26: 1801 | H26: Lanarkshire, Scotland | J26: 61 | K26: 67 | L26: James | M26: Hilly | N26: Male | O26: 30 | P26: 1811 | Q26: Scotland
A27: 50 | B27: 66 | C27: Jane | D27: Dick | E27: Female | F27: 5 | G27: 1836 | H27: Lanarkshire, Scotland | J27: 63 | K27: 67 | L27: James | M27: Hilly | N27: Male | O27: 3 | P27: 1838 | Q27: Scotland
A28: 51 | B28: 66 | C28: Mary | D28: Dick | E28: Female | F28: 1 | G28: 1840 | H28: Lanarkshire, Scotland | J28: 64 | K28: 67 | L28: John | M28: Green | N28: Male | O28: 20 | P28: 1821 | Q28: Ireland
A29: 54 | B29: 67 | C29: - | D29: Hanna | E29: Female | F29: 45 | G29: 1796 | H29: Ireland | J29: 65 | K29: 67 | L29: John | M29: Knox | N29: Male | O29: 15 | P29: 1826 | Q29: Scotland
A30: 55 | B30: 67 | C30: Mary | D30: Hanna | E30: Female | F30: 10 | G30: 1831 | H30: Scotland | J30: 67 | K30: 68 | L30: Robert | M30: Gillies | N30: Male | O30: 45 | P30: 1796 | Q30: Ireland
A31: 56 | B31: 67 | C31: Catherine | D31: Boyle | E31: Female | F31: 40 | G31: 1801 | H31: Lanarkshire, Scotland | J31: 69 | K31: 68 | L31: Archibald | M31: Gillies | N31: Male | O31: 20 | P31: 1821 | Q31: Lanarkshire, Scotland
A32: 62 | B32: 67 | C32: - | D32: Hilly | E32: Female | F32: 25 | G32: 1816 | H32: Ireland | J32: 71 | K32: 68 | L32: Thomas | M32: Paterson | N32: Male | O32: 20 | P32: 1821 | Q32: Lanarkshire, Scotland
A33: 68 | B33: 68 | C33: Sarah | D33: Gillies | E33: Female | F33: 50 | G33: 1791 | H33: England | J33: 74 | K33: 69 | L33: James | M33: Dowie | N33: Male | O33: 40 | P33: 1801 | Q33: Scotland
A34: 70 | B34: 68 | C34: Margaret | D34: Gillies | E34: Female | F34: 15 | G34: 1826 | H34: Lanarkshire, Scotland | J34: 76 | K34: 69 | L34: Thomas | M34: Short | N34: Male | O34: 55 | P34: 1786 | Q34: Ireland
A35: 73 | B35: 69 | C35: Emellea | D35: Dillan | E35: Female | F35: 55 | G35: 1786 | H35: Ireland | J35: 78 | K35: 69 | L35: James | M35: McGowan | N35: Male | O35: 25 | P35: 1816 | Q35: Scotland
A36: 75 | B36: 69 | C36: Janet | D36: Dowie | E36: Female | F36: 45 | G36: 1796 | H36: Scotland | J36: 79 | K36: 69 | L36: Thomas | M36: McGowan | N36: Male | O36: 1 | P36: 1840 | Q36: Lanarkshire, Scotland
A37: 77 | B37: 69 | C37: Elizabeth | D37: Short | E37: Female | F37: 50 | G37: 1791 | H37: Ireland | J37: 81 | K37: 69 | L37: William | M37: McKean | N37: Male | O37: 45 | P37: 1796 | Q37: Ireland
A38: 80 | B38: 69 | C38: Elizabeth | D38: McGowan | E38: Female | F38: 20 | G38: 1821 | H38: Ireland | J38: 83 | K38: 69 | L38: Hamilton | M38: Hay | N38: Male | O38: 10 | P38: 1831 | Q38: Lanarkshire, Scotland
A39: 82 | B39: 69 | C39: Janet | D39: Stewart | E39: Female | F39: 10 | G39: 1831 | H39: Scotland | J39: 87 | K39: 70 | L39: Hugh | M39: Bagnell | N39: Male | O39: 25 | P39: 1816 | Q39: Lanarkshire, Scotland
A40: 84 | B40: 69 | C40: Barbara | D40: Ross | E40: Female | F40: 20 | G40: 1821 | H40: Scotland | J40: 89 | K40: 70 | L40: George | M40: Bagnell | N40: Male | O40: 5 | P40: 1836 | Q40: Lanarkshire, Scotland
A41: 85 | B41: 69 | C41: Agnes | D41: McKean | E41: Female | F41: 10 | G41: 1831 | H41: Scotland | J41: 90 | K41: 70 | L41: John | M41: O'Bryan | N41: Male | O41: 10 | P41: 1831 | Q41: Lanarkshire, Scotland
A42: 88 | B42: 70 | C42: Mary | D42: Bagnell | E42: Female | F42: 40 | G42: 1801 | H42: - | J42: 91 | K42: 70 | L42: Philip | M42: O'Bryan | N42: Male | O42: 10 | P42: 1831 | Q42: Ireland
A43: 92 | B43: 70 | C43: Penelopy | D43: O'Bryan | E43: Female | F43: 10 | G43: 1831 | H43: Lanarkshire, Scotland | J43: 94 | K43: 70 | L43: John | M43: Orr | N43: Male | O43: 25 | P43: 1816 | Q43: Ireland
A44: 93 | B44: 70 | C44: Mary | D44: O'Bryan | E44: Female | F44: 5 | G44: 1836 | H44: Lanarkshire, Scotland | J44: 96 | K44: 70 | L44: James | M44: Orr | N44: Male | O44: 4 | P44: 1837 | Q44: Ireland
A45: 95 | B45: 70 | C45: Margaret | D45: Orr | E45: Female | F45: 25 | G45: 1816 | H45: Ireland | J45: 97 | K45: 70 | L45: Rob | M45: Orr | N45: Male | O45: 2 | P45: 1839 | Q45: Ireland
A46: 99 | B46: 70 | C46: Cathern | D46: Horn | E46: Female | F46: 50 | G46: 1791 | H46: Ireland | J46: 98 | K46: 70 | L46: Torrance | M46: Horn | N46: Male | O46: 60 | P46: 1781 | Q46: Ireland
A47: 109 | B47: 71 | C47: Jane | D47: Murry | E47: Female | F47: 30 | G47: 1811 | H47: Scotland | J47: 101 | K47: 71 | L47: John | M47: Dodds | N47: Male | O47: 40 | P47: 1801 | Q47: Lanarkshire, Scotland
A48: 110 | B48: 71 | C48: Agnes | D48: Dalglish | E48: Female | F48: 50 | G48: 1791 | H48: - | J48: 102 | K48: 71 | L48: Alexander | M48: Crooks | N48: Male | O48: 20 | P48: 1821 | Q48: Scotland
A49: 112 | B49: 72 | C49: Sarah | D49: Dalrumple | E49: Female | F49: 35 | G49: 1806 | H49: Ireland | J49: 103 | K49: 71 | L49: William | M49: Stewart | N49: Male | O49: 15 | P49: 1826 | Q49: Scotland
A50: 115 | B50: 73 | C50: Margaret | D50: Paterson | E50: Female | F50: 35 | G50: 1806 | H50: Scotland | J50: 104 | K50: 71 | L50: William | M50: Anderson | N50: Male | O50: 20 | P50: 1821 | Q50: Scotland
A51: 116 | B51: 73 | C51: Jenat | D51: Paterson | E51: Female | F51: 10 | G51: 1831 | H51: Lanarkshire, Scotland | J51: 105 | K51: 71 | L51: William | M51: Moffer | N51: Male | O51: 20 | P51: 1821 | Q51: Lanarkshire, Scotland
A52: 117 | B52: 73 | C52: Margaret | D52: Paterson | E52: Female | F52: 7 | G52: 1834 | H52: Lanarkshire, Scotland | J52: 106 | K52: 71 | L52: Alexander | M52: Fraser | N52: Male | O52: 15 | P52: 1826 | Q52: Scotland
A53: 121 | B53: 74 | C53: Margaret | D53: McGillion | E53: Female | F53: 25 | G53: 1816 | H53: Ireland | J53: 107 | K53: 71 | L53: Angus | M53: Fraser | N53: Male | O53: 15 | P53: 1826 | Q53: Scotland
A54: 125 | B54: 75 | C54: Janet | D54: Anderson | E54: Female | F54: 20 | G54: 1821 | H54: Lanarkshire, Scotland | J54: 108 | K54: 71 | L54: John | M54: Oswald | N54: Male | O54: 20 | P54: 1821 | Q54: Scotland
A55: 126 | B55: 75 | C55: Mary | D55: Anderson | E55: Female | F55: 1 | G55: 1840 | H55: Lanarkshire, Scotland | J55: 114 | K55: 73 | L55: Hugh | M55: Paterson | N55: Male | O55: 35 | P55: 1806 | Q55: Scotland
A56: 130 | B56: 76 | C56: Mary | D56: Campbell | E56: Female | F56: 20 | G56: 1821 | H56: Scotland | J56: 118 | K56: 73 | L56: George | M56: Paterson | N56: Male | O56: 4 | P56: 1837 | Q56: Lanarkshire, Scotland
A57: 132 | B57: 76 | C57: Margaret | D57: Wallace | E57: Female | F57: 25 | G57: 1816 | H57: Scotland | J57: 120 | K57: 74 | L57: Thomas | M57: McHail | N57: Male | O57: 30 | P57: 1811 | Q57: Ireland
A58: 135 | B58: 76 | C58: Martha | D58: McNab | E58: Female | F58: 20 | G58: 1821 | H58: Scotland | J58: 122 | K58: 74 | L58: Thomas | M58: McHail | N58: Male | O58: 0 | P58: 1841 | Q58: Lanarkshire, Scotland
A59: 138 | B59: 77 | C59: Martha | D59: McCarn | E59: Female | F59: 30 | G59: 1811 | H59: Ireland | J59: 124 | K59: 75 | L59: David | M59: Anderson | N59: Male | O59: 25 | P59: 1816 | Q59: Scotland
A60: 139 | B60: 77 | C60: Biddy | D60: McCarn | E60: Female | F60: 15 | G60: 1826 | H60: Ireland | J60: 127 | K60: 75 | L60: John | M60: Henderson | N60: Male | O60: 18 | P60: 1823 | Q60: Lanarkshire, Scotland
A61: 140 | B61: 77 | C61: Margaret | D61: McCarn | E61: Female | F61: 10 | G61: 1831 | H61: Ireland | J61: 129 | K61: 76 | L61: Collin | M61: Campbell | N61: Male | O61: 30 | P61: 1811 | Q61: Scotland
A62: 142 | B62: 77 | C62: Catherine | D62: McCarn | E62: Female | F62: 5 | G62: 1836 | H62: Lanarkshire, Scotland | J62: 131 | K62: 76 | L62: John | M62: Walker | N62: Male | O62: 30 | P62: 1811 | Q62: Scotland
A63: 147 | B63: 78 | C63: Elizabeth | D63: Sherkey | E63: Female | F63: 40 | G63: 1801 | H63: Ireland | J63: 133 | K63: 76 | L63: Robert | M63: Wallace | N63: Male | O63: 6 | P63: 1835 | Q63: Scotland
A64: 148 | B64: 78 | C64: Mary | D64: Sherkey | E64: Female | F64: 20 | G64: 1821 | H64: Ireland | J64: 134 | K64: 76 | L64: Collin | M64: Wallace | N64: Male | O64: 0 | P64: 1841 | Q64: Scotland
A65: 149 | B65: 78 | C65: Catherine | D65: Sherkey | E65: Female | F65: 13 | G65: 1828 | H65: Ireland | J65: 137 | K65: 77 | L65: Patrick | M65: McCarn | N65: Male | O65: 30 | P65: 1811 | Q65: Ireland
A66: 152 | B66: 78 | C66: Lowise | D66: Sherkey | E66: Female | F66: 9 | G66: 1832 | H66: Ireland | J66: 141 | K66: 77 | L66: Patrick | M66: McCarn | N66: Male | O66: 5 | P66: 1836 | Q66: Lanarkshire, Scotland
A67: 153 | B67: 78 | C67: Michael | D67: Sherkey | E67: Female | F67: 6 | G67: 1835 | H67: Ireland | J67: 143 | K67: 77 | L67: John | M67: McCarn | N67: Male | O67: 2 | P67: 1839 | Q67: Lanarkshire, Scotland
A68: 154 | B68: 78 | C68: Rebecca | D68: Maden | E68: Female | F68: 55 | G68: 1786 | H68: Ireland | J68: 145 | K68: 78 | L68: Peter | M68: Docherty | N68: Male | O68: 20 | P68: 1821 | Q68: Ireland
A69: 155 | B69: 78 | C69: Rebecca | D69: Maden | E69: Female | F69: 15 | G69: 1826 | H69: Ireland | J69: 146 | K69: 78 | L69: Daniel | M69: Sherkey | N69: Male | O69: 45 | P69: 1796 | Q69: Ireland
A70: 157 | B70: 78 | C70: Ellen | D70: Hanna | E70: Female | F70: 30 | G70: 1811 | H70: Ireland | J70: 150 | K70: 78 | L70: James | M70: Sherkey | N70: Male | O70: 15 | P70: 1826 | Q70: Ireland
A71: 158 | B71: 78 | C71: Catherine | D71: Kelly | E71: Female | F71: 40 | G71: 1801 | H71: Ireland | J71: 151 | K71: 78 | L71: Hugh | M71: Sherkey | N71: Male | O71: 11 | P71: 1830 | Q71: Ireland
A72: 161 | B72: 78 | C72: Mary | D72: Frirsen | E72: Female | F72: 20 | G72: 1821 | H72: Ireland | J72: 156 | K72: 78 | L72: Patrick | M72: Maden | N72: Male | O72: 14 | P72: 1827 | Q72: Ireland
A73: 165 | B73: 79 | C73: Agnes | D73: Dobbie | E73: Female | F73: 45 | G73: 1796 | H73: Scotland | J73: 159 | K73: 78 | L73: John | M73: Cunningham | N73: Male | O73: 20 | P73: 1821 | Q73: Ireland
A74: 174 | B74: 80 | C74: Catherine | D74: McFarlane | E74: Female | F74: 30 | G74: 1811 | H74: Scotland | J74: 160 | K74: 78 | L74: Samuel | M74: Cunningham | N74: Male | O74: 15 | P74: 1826 | Q74: Ireland
A75: 175 | B75: 80 | C75: Catherine | D75: McFarlane | E75: Female | F75: 1 | G75: 1840 | H75: Lanarkshire, Scotland | J75: 162 | K75: 78 | L75: Thomas | M75: Cunningham | N75: Male | O75: 1 | P75: 1840 | Q75: Lanarkshire, Scotland
A76: 177 | B76: 81 | C76: Jane | D76: McGill | E76: Female | F76: 40 | G76: 1801 | H76: Lanarkshire, Scotland | J76: 164 | K76: 79 | L76: Alexander | M76: Dobbie | N76: Male | O76: 35 | P76: 1806 | Q76: Scotland
A77: 178 | B77: 81 | C77: Jane | D77: McGill | E77: Female | F77: 15 | G77: 1826 | H77: Lanarkshire, Scotland | J77: 166 | K77: 79 | L77: William | M77: Dobbie | N77: Male | O77: 15 | P77: 1826 | Q77: Lanarkshire, Scotland
A78: 187 | B78: 82 | C78: Christian | D78: Martain | E78: Female | F78: 31 | G78: 1810 | H78: Scotland | J78: 167 | K78: 79 | L78: David | M78: Dobbie | N78: Male | O78: 13 | P78: 1828 | Q78: Lanarkshire, Scotland
A79: 188 | B79: 82 | C79: Jessie | D79: Morter | E79: Female | F79: 1 | G79: 1840 | H79: Scotland | J79: 168 | K79: 79 | L79: Alexander | M79: Dobbie | N79: Male | O79: 11 | P79: 1830 | Q79: Lanarkshire, Scotland
A80: 189 | B80: 82 | C80: Margaret | D80: Macinnis | E80: Female | F80: 1 | G80: 1840 | H80: Scotland | J80: 169 | K80: 79 | L80: James | M80: Dobbie | N80: Male | O80: 9 | P80: 1832 | Q80: Lanarkshire, Scotland
A81: 192 | B81: 83 | C81: Martha | D81: Chalmers | E81: Female | F81: 35 | G81: 1806 | H81: Scotland | J81: 170 | K81: 79 | L81: Andrew | M81: Dobbie | N81: Male | O81: 7 | P81: 1834 | Q81: Lanarkshire, Scotland
A82: 194 | B82: 83 | C82: Ann | D82: Chalmers | E82: Female | F82: 5 | G82: 1836 | H82: Lanarkshire, Scotland | J82: 171 | K82: 79 | L82: John | M82: Algie | N82: Male | O82: 20 | P82: 1821 | Q82: Scotland
A83: 197 | B83: 84 | C83: Jane | D83: Shordan | E83: Female | F83: 20 | G83: 1821 | H83: Ireland | J83: 173 | K83: 80 | L83: John | M83: McFarlane | N83: Male | O83: 25 | P83: 1816 | Q83: Scotland
A84: 199 | B84: 84 | C84: Barbara | D84: Murry | E84: Female | F84: 30 | G84: 1811 | H84: Ireland | J84: 179 | K84: 81 | L84: James | M84: McGill | N84: Male | O84: 15 | P84: 1826 | Q84: Lanarkshire, Scotland
A85: 200 | B85: 84 | C85: Ellen | D85: McDonald | E85: Female | F85: 25 | G85: 1816 | H85: Scotland | J85: 180 | K85: 81 | L85: Hugh | M85: McGill | N85: Male | O85: 13 | P85: 1828 | Q85: Lanarkshire, Scotland
A86: 203 | B86: 85 | C86: Helen | D86: O'Hara | E86: Female | F86: 60 | G86: 1781 | H86: Ireland | J86: 181 | K86: 81 | L86: William | M86: McGill | N86: Male | O86: 10 | P86: 1831 | Q86: Lanarkshire, Scotland
A87: 204 | B87: 85 | C87: Helen | D87: O'Hara | E87: Female | F87: 15 | G87: 1826 | H87: Lanarkshire, Scotland | J87: 182 | K87: 81 | L87: George | M87: McGill | N87: Male | O87: 7 | P87: 1834 | Q87: Lanarkshire, Scotland
A88: 205 | B88: 85 | C88: Ann | D88: O'Hara | E88: Female | F88: 14 | G88: 1827 | H88: Lanarkshire, Scotland | J88: 184 | K88: 82 | L88: Alexander | M88: Martain | N88: Male | O88: 35 | P88: 1806 | Q88: Scotland
A89: 209 | B89: 86 | C89: Sarah | D89: Mairs | E89: Female | F89: 51 | G89: 1790 | H89: Ireland | J89: 185 | K89: 82 | L89: Farquhar | M89: Martain | N89: Male | O89: 20 | P89: 1821 | Q89: Scotland
A90: 211 | B90: 86 | C90: Sarah | D90: Mairs | E90: Female | F90: 18 | G90: 1823 | H90: Lanarkshire, Scotland | J90: 186 | K90: 82 | L90: Donald | M90: Martain | N90: Male | O90: 4 | P90: 1837 | Q90: Scotland
A91: 212 | B91: 86 | C91: Margaret | D91: Mairs | E91: Female | F91: 15 | G91: 1826 | H91: Lanarkshire, Scotland | J91: 191 | K91: 83 | L91: Crawford | M91: Chalmers | N91: Male | O91: 40 | P91: 1801 | Q91: Scotland
A92: 213 | B92: 86 | C92: Letitia | D92: Mairs | E92: Female | F92: 10 | G92: 1831 | H92: Lanarkshire, Scotland | J92: 193 | K92: 83 | L92: David | M92: Chalmers | N92: Male | O92: 10 | P92: 1831 | Q92: Lanarkshire, Scotland
A93: 219 | B93: 87 | C93: Mary | D93: Brigs | E93: Female | F93: 35 | G93: 1806 | H93: Ireland | J93: 196 | K93: 84 | L93: Peter | M93: Shordan | N93: Male | O93: 40 | P93: 1801 | Q93: Ireland
A94: 220 | B94: 87 | C94: Margaret | D94: Brigs | E94: Female | F94: 10 | G94: 1831 | H94: Ireland | J94: 198 | K94: 84 | L94: James | M94: Murry | N94: Male | O94: 30 | P94: 1811 | Q94: Ireland
A95: 222 | B95: 87 | C95: Mary | D95: Brigs | E95: Female | F95: 7 | G95: 1834 | H95: Ireland | J95: 201 | K95: 84 | L95: John | M95: McDonald | N95: Male | O95: 2 | P95: 1839 | Q95: Scotland
A96: 223 | B96: 87 | C96: Catherine | D96: Brigs | E96: Female | F96: 5 | G96: 1836 | H96: Ireland | J96: 206 | K96: 85 | L96: Felix | M96: O'Hara | N96: Male | O96: 13 | P96: 1828 | Q96: Lanarkshire, Scotland
A97: 225 | B97: 87 | C97: Mary | D97: McDonald | E97: Female | F97: 20 | G97: 1821 | H97: Scotland | J97: 208 | K97: 86 | L97: Robert | M97: Mairs | N97: Male | O97: 50 | P97: 1791 | Q97: Ireland
A98: 229 | B98: 88 | C98: Susan | D98: Kennedy | E98: Female | F98: 25 | G98: 1816 | H98: Ireland | J98: 210 | K98: 86 | L98: David | M98: Mairs | N98: Male | O98: 26 | P98: 1815 | Q98: Lanarkshire, Scotland
A99: 230 | B99: 88 | C99: Ann | D99: Kennedy | E99: Female | F99: 20 | G99: 1821 | H99: Ireland | J99: 214 | K99: 86 | L99: James | M99: Mairs | N99: Male | O99: 6 | P99: 1835 | Q99: Lanarkshire, Scotland
A100: 231 | B100: 88 | C100: Bridget | D100: Shiels | E100: Female | F100: 80 | G100: 1761 | H100: Ireland | J100: 215 | K100: 86 | L100: Robert | M100: Mairs | N100: Male | O100: 4 | P100: 1837 | Q100: Lanarkshire, Scotland
A101: 234 | B101: 89 | C101: Agnes | D101: Feren | E101: Female | F101: 40 | G101: 1801 | H101: Ireland | J101: 216 | K101: 86 | L101: Peter | M101: Mairs | N101: Male | O101: 2 | P101: 1839 | Q101: Lanarkshire, Scotland
A102: 239 | B102: 56 | C102: Sophia | D102: Dougald | E102: Female | F102: 27 | G102: 1814 | H102: Ireland | I102: 5 MUIRHEAD STREET | J102: 218 | K102: 87 | L102: James | M102: Brigs | N102: Male | O102: 35 | P102: 1806 | Q102: Ireland
A103: 243 | B103: 57 | C103: Ann | D103: McThaen | E103: Female | F103: 20 | G103: 1821 | H103: Ireland | I103: 5 MUIRHEAD STREET | J103: 221 | K103: 87 | L103: John | M103: Brigs | N103: Male | O103: 12 | P103: 1829 | Q103: Ireland
A104: 247 | B104: 58 | C104: Mary | D104: Goodwin | E104: Female | F104: 60 | G104: 1781 | H104: Ireland | I104: 5 MUIRHEAD STREET | J104: 224 | K104: 87 | L104: James | M104: Brigs | N104: Male | O104: 3 | P104: 1838 | Q104: Ireland
A105: 248 | B105: 58 | C105: Mary | D105: Goodwin | E105: Female | F105: 17 | G105: 1824 | H105: Scotland | I105: 5 MUIRHEAD STREET | J105: 227 | K105: 88 | L105: Alexander | M105: Cammeron | N105: Male | O105: 30 | P105: 1811 | Q105: Scotland
A106: 249 | B106: 58 | C106: Sarah | D106: Goodwin | E106: Female | F106: 13 | G106: 1828 | H106: Scotland | I106: 5 MUIRHEAD STREET | J106: 228 | K106: 88 | L106: Dennis | M106: Thompson | N106: Male | O106: 31 | P106: 1810 | Q106: Ireland
A107: 253 | B107: 59 | C107: Margaret | D107: McNeel | E107: Female | F107: 25 | G107: 1816 | H107: Scotland | I107: 5 MUIRHEAD STREET | J107: 232 | K107: 88 | L107: Hugh | M107: McAllister | N107: Male | O107: 13 | P107: 1828 | Q107: Lanarkshire, Scotland
A108: 254 | B108: 59 | C108: Jennet | D108: McNeel | E108: Female | F108: 5 | G108: 1836 | H108: Scotland | I108: 5 MUIRHEAD STREET | J108: 235 | K108: 89 | L108: Charles | M108: McMul | N108: Male | O108: 14 | P108: 1827 | Q108: Lanarkshire, Scotland | R108: Mc Neil actually
A109: 259 | B109: 60 | C109: Manrien | D109: Manson | E109: Female | F109: 24 | G109: 1817 | H109: Lanarkshire, Scotland | I109: 5 MUIRHEAD STREET | J109: 236 | K109: 89 | L109: John | M109: McMul | N109: Male | O109: 4 | P109: 1837 | Q109: Lanarkshire, Scotland | R109: Mc Neil actually
A110: 260 | B110: 60 | C110: Agness | D110: Manson | E110: Female | F110: 4 | G110: 1837 | H110: Lanarkshire, Scotland | I110: 5 MUIRHEAD STREET | J110: 238 | K110: 56 | L110: Walter | M110: Dougald | N110: Male | O110: 30 | P110: 1811 | Q110: Lanarkshire, Scotland | R110: 5 MUIRHEAD STREET
A111: 262 | B111: 60 | C111: Jean | D111: Simpson | E111: Female | F111: 20 | G111: 1821 | H111: - | I111: 5 MUIRHEAD STREET | J111: 240 | K111: 56 | L111: David | M111: Dougald | N111: Male | O111: 65 | P111: 1776 | Q111: Scotland | R111: 5 MUIRHEAD STREET
A112: 265 | B112: 61 | C112: Margaret | D112: Carter | E112: Female | F112: 30 | G112: 1811 | H112: Lanarkshire, Scotland | I112: 5 MUIRHEAD STREET | J112: 242 | K112: 57 | L112: Terrence | M112: McThaen | N112: Male | O112: 25 | P112: 1816 | Q112: Ireland | R112: 5 MUIRHEAD STREET
A113: 267 | B113: 61 | C113: Isabell | D113: Carter | E113: Female | F113: 9 | G113: 1832 | H113: Lanarkshire, Scotland | I113: 5 MUIRHEAD STREET | J113: 244 | K113: 57 | L113: James | M113: McThaen | N113: Male | O113: 0 | P113: 1841 | Q113: Lanarkshire, Scotland | R113: 5 MUIRHEAD STREET
A114: 270 | B114: 62 | C114: Isabella | D114: Sumpson | E114: Female | F114: 30 | G114: 1811 | H114: Lanarkshire, Scotland | I114: 5 MUIRHEAD STREET | J114: 246 | K114: 58 | L114: Michael | M114: Goodwin | N114: Male | O114: 40 | P114: 1801 | Q114: Ireland | R114: 5 MUIRHEAD STREET
A115: 273 | B115: 63 | C115: Mary | D115: Scouler | E115: Female | F115: 22 | G115: 1819 | H115: Scotland | I115: 5 MUIRHEAD STREET | J115: 250 | K115: 58 | L115: Francis | M115: Mulqueen | N115: Male | O115: 50 | P115: 1791 | Q115: Ireland | R115: 5 MUIRHEAD STREET
A116: 276 | B116: 64 | C116: Marrion | D116: Spencer | E116: Female | F116: 30 | G116: 1811 | H116: England | I116: 5 MUIRHEAD STREET | J116: 252 | K116: 59 | L116: John | M116: McNeel | N116: Male | O116: 25 | P116: 1816 | Q116: Scotland | R116: 5 MUIRHEAD STREET
A117: 280 | B117: 65 | C117: Agness | D117: Henry | E117: Female | F117: 29 | G117: 1812 | H117: Ireland | I117: 5 MUIRHEAD STREET | J117: 255 | K117: 59 | L117: Alexander | M117: McNeel | N117: Male | O117: 1 | P117: 1840 | Q117: Lanarkshire, Scotland | R117: 5 MUIRHEAD STREET
A118: 283 | B118: 65 | C118: Elizabeth | D118: Henry | E118: Female | F118: 5 | G118: 1836 | H118: Lanarkshire, Scotland | I118: 5 MUIRHEAD STREET | J118: 256 | K118: 59 | L118: Nk | M118: - | N118: Male | O118: 0 | P118: 1841 | Q118: Lanarkshire, Scotland | R118: 5 MUIRHEAD STREET
A119: 285 | B119: 66 | C119: Isabella | D119: Freil | E119: Female | F119: 45 | G119: 1796 | H119: Ireland | I119: 5 MUIRHEAD STREET | J119: 258 | K119: 60 | L119: John | M119: Manson | N119: Male | O119: 24 | P119: 1817 | Q119: Lanarkshire, Scotland | R119: 5 MUIRHEAD STREET
A120: 286 | B120: 66 | C120: Susey | D120: Freil | E120: Female | F120: 25 | G120: 1816 | H120: Ireland | I120: 5 MUIRHEAD STREET | J120: 261 | K120: 60 | L120: Robert | M120: Manson | N120: Male | O120: 2 | P120: 1839 | Q120: Lanarkshire, Scotland | R120: 5 MUIRHEAD STREET
A121: 287 | B121: 66 | C121: Bridget | D121: Freil | E121: Female | F121: 20 | G121: 1821 | H121: Ireland | I121: 5 MUIRHEAD STREET | J121: 264 | K121: 61 | L121: Andrew | M121: Carter | N121: Male | O121: 34 | P121: 1807 | Q121: Scotland | R121: 5 MUIRHEAD STREET
A122: 288 | B122: 66 | C122: Rosanah | D122: Freil | E122: Female | F122: 18 | G122: 1823 | H122: Lanarkshire, Scotland | I122: 5 MUIRHEAD STREET | J122: 266 | K122: 61 | L122: Andrew | M122: Carter | N122: Male | O122: - | P122: - | Q122: Lanarkshire, Scotland | R122: 5 MUIRHEAD STREET
A123: 289 | B123: 66 | C123: Isabella | D123: Freil | E123: Female | F123: 15 | G123: 1826 | H123: Lanarkshire, Scotland | I123: 5 MUIRHEAD STREET | J123: 269 | K123: 62 | L123: John | M123: Sumpson | N123: Male | O123: 34 | P123: 1807 | Q123: Lanarkshire, Scotland | R123: 5 MUIRHEAD STREET
A124: 292 | B124: 67 | C124: Catherine | D124: Turnbull | E124: Female | F124: 28 | G124: 1813 | H124: Scotland | I124: 5 MUIRHEAD STREET | J124: 272 | K124: 63 | L124: Robert | M124: Scouler | N124: Male | O124: 25 | P124: 1816 | Q124: Lanarkshire, Scotland | R124: 5 MUIRHEAD STREET
A125: 294 | B125: 67 | C125: Elizabeth | D125: Turnbull | E125: Female | F125: 1 | G125: 1840 | H125: Scotland | I125: 5 MUIRHEAD STREET | J125: 275 | K125: 64 | L125: John | M125: Spencer | N125: Male | O125: 30 | P125: 1811 | Q125: England | R125: 5 MUIRHEAD STREET
A126: 297 | B126: 68 | C126: Elizabeth | D126: Anderson | E126: Female | F126: 40 | G126: 1801 | H126: Lanarkshire, Scotland | I126: 5 MUIRHEAD STREET | J126: 277 | K126: 64 | L126: Thomas | M126: Spencer | N126: Male | O126: 6 | P126: 1835 | Q126: England | R126: 5 MUIRHEAD STREET
A127: 300 | B127: 68 | C127: Racheal | D127: Muir | E127: Female | F127: 7 | G127: 1834 | H127: Lanarkshire, Scotland | I127: 5 MUIRHEAD STREET | J127: 279 | K127: 65 | L127: Mathew | M127: Henry | N127: Male | O127: 28 | P127: 1813 | Q127: Lanarkshire, Scotland | R127: 5 MUIRHEAD STREET
A128: 301 | B128: 68 | C128: Margaret | D128: Rankin | E128: Female | F128: 30 | G128: 1811 | H128: Lanarkshire, Scotland | I128: 5 MUIRHEAD STREET | J128: 281 | K128: 65 | L128: George | M128: Henry | N128: Male | O128: 9 | P128: 1832 | Q128: Lanarkshire, Scotland | R128: 5 MUIRHEAD STREET
A129: 304 | B129: 69 | C129: Jean | D129: Gardner | E129: Female | F129: 30 | G129: 1811 | H129: Scotland | I129: 5 MUIRHEAD STREET | J129: 282 | K129: 65 | L129: Samuel | M129: Henry | N129: Male | O129: 7 | P129: 1834 | Q129: Lanarkshire, Scotland | R129: 5 MUIRHEAD STREET
A130: 305 | B130: 69 | C130: Christina | D130: Gardner | E130: Female | F130: 1 | G130: 1840 | H130: Lanarkshire, Scotland | I130: 5 MUIRHEAD STREET | J130: 291 | K130: 67 | L130: Robert | M130: Turnbull | N130: Male | O130: 34 | P130: 1807 | Q130: Scotland | R130: 5 MUIRHEAD STREET
A131: 308 | B131: 70 | C131: Janet | D131: Dorrache | E131: Female | F131: 30 | G131: 1811 | H131: Lanarkshire, Scotland | I131: 5 MUIRHEAD STREET | J131: 293 | K131: 67 | L131: Robert | M131: Turnbull | N131: Male | O131: 12 | P131: 1829 | Q131: Scotland | R131: 5 MUIRHEAD STREET
A132: 314 | B132: 71 | C132: Isabella | D132: Brodie | E132: Female | F132: 38 | G132: 1803 | H132: Lanarkshire, Scotland | I132: 5 MUIRHEAD STREET | J132: 296 | K132: 68 | L132: James | M132: Anderson | N132: Male | O132: 40 | P132: 1801 | Q132: Scotland | R132: 5 MUIRHEAD STREET
A133: 315 | B133: 71 | C133: Margaret | D133: Brodie | E133: Female | F133: 4 | G133: 1837 | H133: Lanarkshire, Scotland | I133: 5 MUIRHEAD STREET | J133: 298 | K133: 68 | L133: William | M133: Anderson | N133: Male | O133: 15 | P133: 1826 | Q133: Lanarkshire, Scotland | R133: 5 MUIRHEAD STREET
A134: 316 | B134: 71 | C134: Christinia | D134: Brodie | E134: Female | F134: 0 | G134: 1841 | H134: Lanarkshire, Scotland | I134: 5 MUIRHEAD STREET | J134: 299 | K134: 68 | L134: James | M134: Muir | N134: Male | O134: 13 | P134: 1828 | Q134: Lanarkshire, Scotland | R134: 5 MUIRHEAD STREET
A135: 317 | B135: 71 | C135: Mary | D135: Stewart | E135: Female | F135: 40 | G135: 1801 | H135: Scotland | I135: 5 MUIRHEAD STREET | J135: 303 | K135: 69 | L135: Henry | M135: Gardner | N135: Male | O135: 29 | P135: 1812 | Q135: Scotland | R135: 5 MUIRHEAD STREET
A136: 320 | B136: 72 | C136: Jean | D136: Johnston | E136: Female | F136: 15 | G136: 1826 | H136: Lanarkshire, Scotland | I136: 5 MUIRHEAD STREET | J136: 307 | K136: 70 | L136: Charles | M136: Dorrache | N136: Male | O136: 37 | P136: 1804 | Q136: Lanarkshire, Scotland | R136: 5 MUIRHEAD STREET
A137: 321 | B137: 72 | C137: Margaret | D137: Taylor | E137: Female | F137: 20 | G137: 1821 | H137: Lanarkshire, Scotland | I137: 5 MUIRHEAD STREET | J137: 309 | K137: 70 | L137: Charles | M137: Dorrache | N137: Male | O137: 15 | P137: 1826 | Q137: Lanarkshire, Scotland | R137: 5 MUIRHEAD STREET
A138: 322 | B138: 72 | C138: Margaret | D138: Naught | E138: Female | F138: 1 | G138: 1840 | H138: Lanarkshire, Scotland | I138: 5 MUIRHEAD STREET | J138: 310 | K138: 70 | L138: David | M138: Dorrache | N138: Male | O138: 12 | P138: 1829 | Q138: Lanarkshire, Scotland | R138: 5 MUIRHEAD STREET
A139: 325 | B139: 73 | C139: Christiana | D139: King Sr | E139: Female | F139: 30 | G139: 1811 | H139: Lanarkshire, Scotland | I139: 5 MUIRHEAD STREET | J139: 311 | K139: 70 | L139: Neil | M139: Dorrache | N139: Male | O139: 3 | P139: 1838 | Q139: Lanarkshire, Scotland | R139: 5 MUIRHEAD STREET
A140: 326 | B140: 73 | C140: Mary | D140: Smith | E140: Female | F140: 8 | G140: 1833 | H140: Lanarkshire, Scotland | I140: 5 MUIRHEAD STREET | J140: 313 | K140: 71 | L140: Robert | M140: Brodie | N140: Male | O140: 56 | P140: 1785 | Q140: Lanarkshire, Scotland | R140: 5 MUIRHEAD STREET
A141: 329 | B141: 74 | C141: Agness | D141: Durrah | E141: Female | F141: 62 | G141: 1779 | H141: Lanarkshire, Scotland | I141: 5 MUIRHEAD STREET | J141: 319 | K141: 72 | L141: Robert | M141: Johnston | N141: Male | O141: 20 | P141: 1821 | Q141: Lanarkshire, Scotland | R141: 5 MUIRHEAD STREET
A142: 332 | B142: 75 | C142: Helen | D142: Steven | E142: Female | F142: 45 | G142: 1796 | H142: Scotland | I142: 5 MUIRHEAD STREET | J142: 324 | K142: 73 | L142: Mathew | M142: King | N142: Male | O142: 30 | P142: 1811 | Q142: Lanarkshire, Scotland | R142: 5 MUIRHEAD STREET
A143: 339 | B143: 76 | C143: Christiana | D143: Campble | E143: Female | F143: 25 | G143: 1816 | H143: Scotland | I143: 5 MUIRHEAD STREET | J143: 328 | K143: 74 | L143: Charles | M143: Durrah | N143: Male | O143: 82 | P143: 1759 | Q143: Ireland | R143: 5 MUIRHEAD STREET
A144: 340 | B144: 76 | C144: Catherine | D144: Campble | E144: Female | F144: 5 | G144: 1836 | H144: Scotland | I144: 5 MUIRHEAD STREET | J144: 331 | K144: 75 | L144: Robert | M144: Steven | N144: Male | O144: 49 | P144: 1792 | Q144: Scotland | R144: 5 MUIRHEAD STREET
A145: 342 | B145: 76 | C145: Jennet | D145: Campble | E145: Female | F145: 0 | G145: 1841 | H145: Lanarkshire, Scotland | I145: 5 MUIRHEAD STREET | J145: 333 | K145: 75 | L145: Thomas | M145: Steven | N145: Male | O145: 17 | P145: 1824 | Q145: Lanarkshire, Scotland | R145: 5 MUIRHEAD STREET
A146: 344 | B146: 76 | C146: Mary | D146: McDonald | E146: Female | F146: 18 | G146: 1823 | H146: Scotland | I146: 5 MUIRHEAD STREET | J146: 334 | K146: 75 | L146: Robert | M146: Steven | N146: Male | O146: 13 | P146: 1828 | Q146: Lanarkshire, Scotland | R146: 5 MUIRHEAD STREET
A147: 348 | B147: 77 | C147: Elezibeth | D147: Mitchell | E147: Female | F147: 34 | G147: 1807 | H147: Scotland | I147: 5 MUIRHEAD STREET | J147: 335 | K147: 75 | L147: John | M147: Steven | N147: Male | O147: 9 | P147: 1832 | Q147: Lanarkshire, Scotland | R147: 5 MUIRHEAD STREET
A148: 350 | B148: 77 | C148: Elezibeth | D148: Mitchell | E148: Female | F148: 9 | G148: 1832 | H148: Lanarkshire, Scotland | I148: 5 MUIRHEAD STREET | J148: 336 | K148: 75 | L148: James | M148: Steven | N148: Male | O148: 7 | P148: 1834 | Q148: Lanarkshire, Scotland | R148: 5 MUIRHEAD STREET
A149: 353 | B149: 78 | C149: Elizabeth | D149: Cowan | E149: Female | F149: 24 | G149: 1817 | H149: England | I149: 5 MUIRHEAD STREET | J149: 338 | K149: 76 | L149: Robert | M149: Campble | N149: Male | O149: 50 | P149: 1791 | Q149: Scotland | R149: 5 MUIRHEAD STREET
A150: 355 | B150: 78 | C150: Mary | D150: Cowan | E150: Female | F150: 70 | G150: 1771 | H150: Lanarkshire, Scotland | I150: 5 MUIRHEAD STREET | J150: 341 | K150: 76 | L150: James | M150: Campble | N150: Male | O150: 3 | P150: 1838 | Q150: Scotland | R150: 5 MUIRHEAD STREET
A151: 357 | B151: 79 | C151: Mary | D151: Turner | E151: Female | F151: 45 | G151: 1796 | H151: Scotland | I151: 5 MUIRHEAD STREET | J151: 343 | K151: 76 | L151: James | M151: Clark | N151: Male | O151: 23 | P151: 1818 | Q151: England | R151: 5 MUIRHEAD STREET
A152: 359 | B152: 79 | C152: Agnes | D152: Turner | E152: Female | F152: 20 | G152: 1821 | H152: - | I152: 5 MUIRHEAD STREET | J152: 345 | K152: 76 | L152: Peter | M152: Brodie | N152: Male | O152: 20 | P152: 1821 | Q152: Ireland | R152: 5 MUIRHEAD STREET
A153: 362 | B153: 80 | C153: Lillias | D153: Brekenride | E153: Female | F153: 73 | G153: 1768 | H153: Lanarkshire, Scotland | I153: 5 MUIRHEAD STREET | J153: 347 | K153: 77 | L153: Andrew | M153: Mitchell | N153: Male | O153: 35 | P153: 1806 | Q153: Scotland | R153: 5 MUIRHEAD STREET
A154: 365 | B154: 81 | C154: Margaret | D154: Brekenride | E154: Female | F154: 30 | G154: 1811 | H154: Scotland | I154: 5 MUIRHEAD STREET | J154: 349 | K154: 77 | L154: John | M154: Mitchell | N154: Male | O154: 10 | P154: 1831 | Q154: Scotland | R154: 5 MUIRHEAD STREET
A155: 367 | B155: 81 | C155: Agness | D155: Lawrie | E155: Female | F155: 20 | G155: 1821 | H155: Lanarkshire, Scotland | I155: 5 MUIRHEAD STREET | J155: 352 | K155: 78 | L155: Gilbert | M155: Cowan | N155: Male | O155: 27 | P155: 1814 | Q155: Lanarkshire, Scotland | R155: 5 MUIRHEAD STREET
A156: 369 | B156: 81 | C156: Helen | D156: Miller | E156: Female | F156: 25 | G156: 1816 | H156: Lanarkshire, Scotland | I156: 5 MUIRHEAD STREET | J156: 354 | K156: 78 | L156: James | M156: Cowan | N156: Male | O156: 0 | P156: 1841 | Q156: Lanarkshire, Scotland | R156: 5 MUIRHEAD STREET
A157: 372 | B157: 82 | C157: Isabella | D157: Roberton | E157: Female | F157: 45 | G157: 1796 | H157: Scotland | I157: 5 MUIRHEAD STREET | J157: 358 | K157: 79 | L157: Alexander | M157: Turner | N157: Male | O157: 25 | P157: 1816 | Q157: Scotland | R157: 5 MUIRHEAD STREET
A158: 373 | B158: 82 | C158: Jean | D158: Roberton | E158: Female | F158: 20 | G158: 1821 | H158: Scotland | I158: 5 MUIRHEAD STREET | J158: 361 | K158: 80 | L158: William | M158: Brekenride | N158: Male | O158: 74 | P158: 1767 | Q158: Lanarkshire, Scotland | R158: 5 MUIRHEAD STREET
A159: 374 | B159: 82 | C159: Isabella | D159: Roberton | E159: Female | F159: 15 | G159: 1826 | H159: Scotland | I159: 5 MUIRHEAD STREET | J159: 364 | K159: 81 | L159: William | M159: Brekenride | N159: Male | O159: 30 | P159: 1811 | Q159: Lanarkshire, Scotland | R159: 5 MUIRHEAD STREET
A160: 376 | B160: 82 | C160: Mary | D160: Roberton | E160: Female | F160: 9 | G160: 1832 | H160: Lanarkshire, Scotland | I160: 5 MUIRHEAD STREET | J160: 366 | K160: 81 | L160: James | M160: Lawrie | N160: Male | O160: 20 | P160: 1821 | Q160: Lanarkshire, Scotland | R160: 5 MUIRHEAD STREET
A161: 378 | B161: 82 | C161: Helen | D161: Roberton | E161: Female | F161: 13 | G161: 1828 | H161: - | I161: 5 MUIRHEAD STREET | J161: 368 | K161: 81 | L161: Alexander | M161: Lawrie | N161: Male | O161: 0 | P161: 1841 | Q161: Lanarkshire, Scotland | R161: 5 MUIRHEAD STREET
A162: 382 | B162: 82 | C162: Jennet | D162: Coupeer | E162: Female | F162: 28 | G162: 1813 | H162: Scotland | I162: 5 MUIRHEAD STREET | J162: 371 | K162: 82 | L162: James | M162: Roberton | N162: Male | O162: 45 | P162: 1796 | Q162: Scotland | R162: 5 MUIRHEAD STREET
A163: 383 | B163: 82 | C163: Jennet | D163: Coupeer | E163: Female | F163: 3 | G163: 1838 | H163: Lanarkshire, Scotland | I163: 5 MUIRHEAD STREET | J163: 375 | K163: 82 | L163: Johnston | M163: Roberton | N163: Male | O163: 13 | P163: 1828 | Q163: Scotland | R163: 5 MUIRHEAD STREET
A164: 385 | B164: 83 | C164: Catherine | D164: McLachlan | E164: Female | F164: 46 | G164: 1795 | H164: Scotland | I164: 5 MUIRHEAD STREET | J164: 377 | K164: 82 | L164: James | M164: Roberton | N164: Male | O164: 5 | P164: 1836 | Q164: Lanarkshire, Scotland | R164: 5 MUIRHEAD STREET
A165: 390 | B165: 84 | C165: Agness | D165: Bruce | E165: Female | F165: 24 | G165: 1817 | H165: Scotland | I165: 5 MUIRHEAD STREET | J165: 379 | K165: 82 | L165: John | M165: Chisholm | N165: Male | O165: 20 | P165: 1821 | Q165: England | R165: 5 MUIRHEAD STREET
A166: 397 | B166: 85 | C166: Elizebith | D166: Eddie | E166: Female | F166: 60 | G166: 1781 | H166: Scotland | I166: 5 MUIRHEAD STREET | J166: 380 | K166: 82 | L166: John | M166: Ensing | N166: Male | O166: 58 | P166: 1783 | Q166: Scotland | R166: 5 MUIRHEAD STREET
A167: 402 | B167: 86 | C167: Jean | D167: McAustin | E167: Female | F167: 30 | G167: 1811 | H167: Lanarkshire, Scotland | I167: 5 MUIRHEAD STREET | J167: 381 | K167: 82 | L167: James | M167: Coupeer | N167: Male | O167: 31 | P167: 1810 | Q167: Lanarkshire, Scotland | R167: 5 MUIRHEAD STREET
A168: 404 | B168: 86 | C168: Mary | D168: McAustin | E168: Female | F168: 5 | G168: 1836 | H168: Lanarkshire, Scotland | I168: 5 MUIRHEAD STREET | J168: 386 | K168: 83 | L168: Andrew | M168: McLachlan | N168: Male | O168: 21 | P168: 1820 | Q168: Lanarkshire, Scotland | R168: 5 MUIRHEAD STREET
A169: 405 | B169: 86 | C169: Margaret | D169: McAustin | E169: Female | F169: 3 | G169: 1838 | H169: Lanarkshire, Scotland | I169: 5 MUIRHEAD STREET | J169: 388 | K169: 84 | L169: Andrew | M169: Bruce | N169: Male | O169: 56 | P169: 1785 | Q169: Scotland | R169: 5 MUIRHEAD STREET
A170: 406 | B170: 86 | C170: Mary | D170: Campbell | E170: Female | F170: 45 | G170: 1796 | H170: Scotland | I170: 5 MUIRHEAD STREET | J170: 389 | K170: 84 | L170: William | M170: Bruce | N170: Male | O170: 33 | P170: 1808 | Q170: Scotland | R170: 5 MUIRHEAD STREET
A171: 408 | B171: 55 | C171: Jennet | D171: McIlneher | E171: Female | F171: 38 | G171: 1803 | H171: Scotland | I171: 7 MUIRHEAD STREET | J171: 391 | K171: 84 | L171: Charles | M171: Bruce | N171: Male | O171: 22 | P171: 1819 | Q171: Scotland | R171: 5 MUIRHEAD STREET
A172: 410 | B172: 55 | C172: Margaret | D172: McIlneher | E172: Female | F172: 13 | G172: 1828 | H172: Lanarkshire, Scotland | I172: 7 MUIRHEAD STREET | J172: 392 | K172: 84 | L172: James | M172: Bruce | N172: Male | O172: 20 | P172: 1821 | Q172: Scotland | R172: 5 MUIRHEAD STREET
A173: 411 | B173: 55 | C173: Jennet | D173: McIlneher | E173: Female | F173: 8 | G173: 1833 | H173: Lanarkshire, Scotland | I173: 7 MUIRHEAD STREET | J173: 393 | K173: 84 | L173: Peter | M173: Bruce | N173: Male | O173: 16 | P173: 1825 | Q173: Scotland | R173: 5 MUIRHEAD STREET
A174: 412 | B174: 55 | C174: Mary | D174: McIlneher | E174: Female | F174: 6 | G174: 1835 | H174: Lanarkshire, Scotland | I174: 7 MUIRHEAD STREET | J174: 394 | K174: 84 | L174: Henry | M174: Bruce | N174: Male | O174: 14 | P174: 1827 | Q174: Scotland | R174: 5 MUIRHEAD STREET
A175: 416 | B175: 54 | C175: Martha | D175: Parcel | E175: Female | F175: 30 | G175: 1811 | H175: Scotland | I175: 9 MUIRHEAD STREET | J175: 396 | K175: 85 | L175: Andrew | M175: Eddie | N175: Male | O175: 60 | P175: 1781 | Q175: Lanarkshire, Scotland | R175: 5 MUIRHEAD STREET
A176: 417 | B176: 54 | C176: Martha | D176: Parcel | E176: Female | F176: 19 | G176: 1822 | H176: Lanarkshire, Scotland | I176: 9 MUIRHEAD STREET | J176: 398 | K176: 85 | L176: John | M176: Eddie | N176: Male | O176: 25 | P176: 1816 | Q176: Lanarkshire, Scotland | R176: 5 MUIRHEAD STREET
A177: 418 | B177: 54 | C177: Marian | D177: Parcel | E177: Female | F177: 7 | G177: 1834 | H177: Lanarkshire, Scotland | I177: 9 MUIRHEAD STREET | J177: 399 | K177: 85 | L177: James | M177: Eddie | N177: Male | O177: 15 | P177: 1826 | Q177: Lanarkshire, Scotland | R177: 5 MUIRHEAD STREET
A178: 419 | B178: 54 | C178: Euphemia | D178: Parcel | E178: Female | F178: 3 | G178: 1838 | H178: Lanarkshire, Scotland | I178: 9 MUIRHEAD STREET | J178: 401 | K178: 86 | L178: Archibald | M178: McAustin | N178: Male | O178: 35 | P178: 1806 | Q178: Scotland | R178: 5 MUIRHEAD STREET
A179: 420 | B179: 54 | C179: Jean | D179: Parcel | E179: Female | F179: 0 | G179: 1841 | H179: Lanarkshire, Scotland | I179: 9 MUIRHEAD STREET | J179: 403 | K179: 86 | L179: Archibald | M179: McAustin | N179: Male | O179: 9 | P179: 1832 | Q179: Lanarkshire, Scotland | R179: 5 MUIRHEAD STREET
A180: 421 | B180: 54 | C180: Jean | D180: Anderson | E180: Female | F180: 20 | G180: 1821 | H180: - | I180: 9 MUIRHEAD STREET | J180: 409 | K180: 55 | L180: James | M180: McIlneher | N180: Male | O180: 15 | P180: 1826 | Q180: Lanarkshire, Scotland | R180: 7 MUIRHEAD STREET
A181: 424 | B181: 97 | C181: Jennet | D181: Coats | E181: Female | F181: 20 | G181: 1821 | H181: Lanarkshire, Scotland | I181: 13 MUIRHEAD STREET | J181: 413 | K181: 55 | L181: William | M181: McIlneher | N181: Male | O181: 4 | P181: 1837 | Q181: Lanarkshire, Scotland | R181: 7 MUIRHEAD STREET
A182: 425 | B182: 97 | C182: Mary | D182: Muir | E182: Female | F182: 20 | G182: 1821 | H182: Lanarkshire, Scotland | I182: 13 MUIRHEAD STREET | J182: 415 | K182: 54 | L182: James | M182: Parcel | N182: Male | O182: 26 | P182: 1815 | Q182: Lanarkshire, Scotland | R182: 9 MUIRHEAD STREET
A183: 428 | B183: 44 | C183: Margaret | D183: Stalker | E183: Female | F183: 35 | G183: 1806 | H183: Scotland | I183: 19 MUIRHEAD STREET | J183: 423 | K183: 97 | L183: James | M183: Coats | N183: Male | O183: 35 | P183: 1806 | Q183: Lanarkshire, Scotland | R183: 13 MUIRHEAD STREET
A184: 429 | B184: 44 | C184: Isabela | D184: Stalker | E184: Female | F184: 12 | G184: 1829 | H184: Lanarkshire, Scotland | I184: 19 MUIRHEAD STREET | J184: 427 | K184: 44 | L184: Finlay | M184: Stalker | N184: Male | O184: 40 | P184: 1801 | Q184: Scotland | R184: 19 MUIRHEAD STREET
A185: 438 | B185: 46 | C185: Ann | D185: Laird | E185: Female | F185: 4 | G185: 1837 | H185: Lanarkshire, Scotland | I185: 19 MUIRHEAD STREET | J185: 430 | K185: 44 | L185: John | M185: Stalker | N185: Male | O185: 3 | P185: 1838 | Q185: Lanarkshire, Scotland | R185: 19 MUIRHEAD STREET
A186: 440 | B186: 46 | C186: Janet | D186: Laird | E186: Female | F186: 65 | G186: 1776 | H186: Scotland | I186: 19 MUIRHEAD STREET | J186: 431 | K186: 44 | L186: Tinlay | M186: Stalker | N186: Male | O186: 0 | P186: 1841 | Q186: Lanarkshire, Scotland | R186: 19 MUIRHEAD STREET
A187: 442 | B187: 47 | C187: Mary | D187: Cameron | E187: Female | F187: 50 | G187: 1791 | H187: Lanarkshire, Scotland | I187: 19 MUIRHEAD STREET | J187: 433 | K187: 45 | L187: John | M187: Ramsay | N187: Male | O187: 54 | P187: 1787 | Q187: Scotland | R187: 19 MUIRHEAD STREET
A188: 443 | B188: 47 | C188: Margaret | D188: Cameron | E188: Female | F188: 20 | G188: 1821 | H188: Lanarkshire, Scotland | I188: 19 MUIRHEAD STREET | J188: 434 | K188: 45 | L188: Thomas | M188: Jaffray | N188: Male | O188: 6 | P188: 1835 | Q188: Lanarkshire, Scotland | R188: 19 MUIRHEAD STREET
A189: 445 | B189: 48 | C189: Jean | D189: Cameron | E189: Female | F189: 19 | G189: 1822 | H189: Lanarkshire, Scotland | I189: 19 MUIRHEAD STREET | J189: 436 | K189: 46 | L189: Walter | M189: Laird | N189: Male | O189: 30 | P189: 1811 | Q189: Scotland | R189: 19 MUIRHEAD STREET
A190: 446 | B190: 48 | C190: Marian | D190: Barclay | E190: Female | F190: 20 | G190: 1821 | H190: Lanarkshire, Scotland | I190: 19 MUIRHEAD STREET | J190: 437 | K190: 46 | L190: John | M190: Laird | N190: Male | O190: 6 | P190: 1835 | Q190: Lanarkshire, Scotland | R190: 19 MUIRHEAD STREET
A191: 447 | B191: 48 | C191: Margaret | D191: Barclay | E191: Female | F191: 18 | G191: 1823 | H191: - | I191: 19 MUIRHEAD STREET | J191: 439 | K191: 46 | L191: Joseph | M191: Laird | N191: Male | O191: 3 | P191: 1838 | Q191: Lanarkshire, Scotland | R191: 19 MUIRHEAD STREET
A192: 451 | B192: 49 | C192: Elizabeth | D192: Henderson | E192: Female | F192: 25 | G192: 1816 | H192: Scotland | I192: 19 MUIRHEAD STREET | J192: 448 | K192: 48 | L192: M Wm | M192: Barclay | N192: Male | O192: 14 | P192: 1827 | Q192: Scotland | R192: 19 MUIRHEAD STREET
A193: 454 | B193: 50 | C193: Agness | D193: Agnew | E193: Female | F193: 12 | G193: 1829 | H193: Lanarkshire, Scotland | I193: 19 MUIRHEAD STREET | J193: 450 | K193: 49 | L193: David | M193: Henderson | N193: Male | O193: 30 | P193: 1811 | Q193: Scotland | R193: 19 MUIRHEAD STREET
A194: 456 | B194: 50 | C194: Mary | D194: Muir | E194: Female | F194: 36 | G194: 1805 | H194: Ireland | I194: 19 MUIRHEAD STREET | J194: 453 | K194: 50 | L194: James | M194: Henderson | N194: Male | O194: 0 | P194: 1841 | Q194: Lanarkshire, Scotland | R194: 19 MUIRHEAD STREET
A195: 457 | B195: 50 | C195: Jean | D195: Muir | E195: Female | F195: 5 | G195: 1836 | H195: Ireland | I195: 19 MUIRHEAD STREET | J195: 455 | K195: 50 | L195: Hendry | M195: Muir | N195: Male | O195: 31 | P195: 1810 | Q195: Ireland | R195: 19 MUIRHEAD STREET
A196: 460 | B196: 51 | C196: Ann | D196: Finlater | E196: Female | F196: 50 | G196: 1791 | H196: Lanarkshire, Scotland | I196: 19 MUIRHEAD STREET | J196: 459 | K196: 51 | L196: James | M196: Finlater | N196: Male | O196: 50 | P196: 1791 | Q196: Lanarkshire, Scotland | R196: 19 MUIRHEAD STREET
A197: 465 | B197: 52 | C197: Mary | D197: Little | E197: Female | F197: 11 | G197: 1830 | H197: Lanarkshire, Scotland | I197: 19 MUIRHEAD STREET | J197: 462 | K197: 52 | L197: James | M197: Little | N197: Male | O197: 46 | P197: 1795 | Q197: England | R197: 19 MUIRHEAD STREET
A198: 469 | B198: 53 | C198: Elizabeth | D198: Muir | E198: Female | F198: 25 | G198: 1816 | H198: England | I198: 19 MUIRHEAD STREET | J198: 463 | K198: 52 | L198: James | M198: Little | N198: Male | O198: 17 | P198: 1824 | Q198: Lanarkshire, Scotland | R198: 19 MUIRHEAD STREET
A199: 476 | B199: 53 | C199: Isabella | D199: Scott | E199: Female | F199: 5 | G199: 1836 | H199: Lanarkshire, Scotland | I199: 19 MUIRHEAD STREET | J199: 464 | K199: 52 | L199: Robert | M199: Little | N199: Male | O199: 13 | P199: 1828 | Q199: Lanarkshire, Scotland | R199: 19 MUIRHEAD STREET
A200: 477 | B200: 53 | C200: Jean | D200: Scott | E200: Female | F200: 4 | G200: 1837 | H200: Lanarkshire, Scotland | I200: 19 MUIRHEAD STREET | J200: 467 | K200: 53 | L200: Alexander | M200: Little | N200: Male | O200: 7 | P200: 1834 | Q200: Lanarkshire, Scotland | R200: 19 MUIRHEAD STREET
A201: 480 | B201: 39 | C201: Isabella | D201: McIntyre | E201: Female | F201: 25 | G201: 1816 | H201: Lanarkshire, Scotland | I201: 21 MUIRHEAD STREET | J201: 468 | K201: 53 | L201: John | M201: Muir | N201: Male | O201: 25 | P201: 1816 | Q201: Ireland | R201: 19 MUIRHEAD STREET
... 151 more rows
